{"text_format":"1","workbook":"xlsx","n_sheets":2,"sheets":["Obrazec preveritev in poročanje","Kode"],"not_rendered":{"charts":0,"images":0,"macros":1,"external_links":0,"defined_names":0,"comments":1,"pivot_tables":0},"unopened":[],"bounds":{"document_bytes":16777216,"sheet_cells":100000,"rows_first":2000,"rows_last":500,"rows_between":2000,"halvings":0,"cell_chars":16384,"cell_head_chars":4096},"cells_cut":0,"cells_raw":0,"read":"whole","date_system":"1900"}

{"sheet":"Obrazec preveritev in poročanje","index":0,"n_rows":205,"n_cols":24,"rows_kept":205,"cut":false,"hidden":false,"merged":[]}
["Naziv dajalca pomoči","Matična številka dajalca pomoči","Številka priglasitve","Naziv sheme pomoči de minimis ali individualne ad hoc pomoči de minimis","Matična številka prejemnika","Ime in priimek prejemnika ali naziv pravne osebe, ki je prejela pomoč","Davčna št.  prejemnika","KMG-MID-številka prejemnika","Naslov prejemnika (ime ulice in hišna številka, poštna številka in naziv pošte)","Šifra občine prejemnika","Datum odobritve pomoči","Datum nakazila pomoči prejemniku","Šifra instrumenta pomoči","Šifra namena pomoči","Opis ukrepa","Naložba\n(da/ne)","Vrednost celotne naložbe (EUR)","Pravna podlaga za odobritev pomoči","Pravni akt","Znesek upravičenih stroškov (EUR)","Bruto znesek pomoči \n(EUR)","Neto znesek \npomoči (EUR)","Število udeležencev","Stopnja intenzivnosti pomoči (%)"]
[null,{"$f":"VLOOKUP(A2,Kode!A2:C21,3,FALSE)","v":{"$error":"#N/A"}},{"$f":"VLOOKUP(A2,Kode!A2:B21,2,FALSE)","v":{"$error":"#N/A"}},{"$f":"VLOOKUP(A2,Kode!A2:D21,4,FALSE)","v":{"$error":"#N/A"}},null,null,null,null,null,null,null,null,null,null,null,null,null,{"$f":"VLOOKUP(A2,Kode!A2:E21,5,FALSE)","v":{"$error":"#N/A"}},null,null,null,null,null,{"$f":"V2/T2*100","v":{"$error":"#DIV/0!"}}]
[null,{"$f":"VLOOKUP(A3,Kode!A2:C21,3,FALSE)","v":{"$error":"#N/A"}},{"$f":"VLOOKUP(A3,Kode!A2:B21,2,FALSE)","v":{"$error":"#N/A"}},{"$f":"VLOOKUP(A3,Kode!A2:D21,4,FALSE)","v":{"$error":"#N/A"}},null,null,null,null,null,null,null,null,null,null,null,null,null,{"$f":"VLOOKUP(A3,Kode!A2:E21,5,FALSE)","v":{"$error":"#N/A"}},null,null,null,null,null,{"$f":"V3/T3*100","v":{"$error":"#DIV/0!"}}]
[null,{"$f":"VLOOKUP(A4,Kode!A2:C21,3,FALSE)","v":{"$error":"#N/A"}},{"$f":"VLOOKUP(A4,Kode!A2:B21,2,FALSE)","v":{"$error":"#N/A"}},{"$f":"VLOOKUP(A4,Kode!A2:D21,4,FALSE)","v":{"$error":"#N/A"}},null,null,null,null,null,null,null,null,null,null,null,null,null,{"$f":"VLOOKUP(A4,Kode!A2:E21,5,FALSE)","v":{"$error":"#N/A"}},null,null,null,null,null,{"$error":"#DIV/0!"}]
[null,{"$f":"VLOOKUP(A5,Kode!A2:C21,3,FALSE)","v":{"$error":"#N/A"}},{"$f":"VLOOKUP(A5,Kode!A2:B21,2,FALSE)","v":{"$error":"#N/A"}},{"$f":"VLOOKUP(A5,Kode!A2:D21,4,FALSE)","v":{"$error":"#N/A"}},null,null,null,null,null,null,null,null,null,null,null,null,null,{"$f":"VLOOKUP(A5,Kode!A2:E21,5,FALSE)","v":{"$error":"#N/A"}},null,null,null,null,null,{"$error":"#DIV/0!"}]
[null,{"$f":"VLOOKUP(A6,Kode!A2:C21,3,FALSE)","v":{"$error":"#N/A"}},{"$f":"VLOOKUP(A6,Kode!A2:B21,2,FALSE)","v":{"$error":"#N/A"}},{"$f":"VLOOKUP(A6,Kode!A2:D21,4,FALSE)","v":{"$error":"#N/A"}},null,null,null,null,null,null,null,null,null,null,null,null,null,{"$f":"VLOOKUP(A6,Kode!A2:E21,5,FALSE)","v":{"$error":"#N/A"}},null,null,null,null,null,{"$error":"#DIV/0!"}]
[null,{"$f":"VLOOKUP(A7,Kode!A2:C21,3,FALSE)","v":{"$error":"#N/A"}},{"$f":"VLOOKUP(A7,Kode!A2:B21,2,FALSE)","v":{"$error":"#N/A"}},{"$f":"VLOOKUP(A7,Kode!A2:D21,4,FALSE)","v":{"$error":"#N/A"}},null,null,null,null,null,null,null,null,null,null,null,null,null,{"$f":"VLOOKUP(A7,Kode!A2:E21,5,FALSE)","v":{"$error":"#N/A"}},null,null,null,null,null,{"$error":"#DIV/0!"}]
[null,{"$f":"VLOOKUP(A8,Kode!A2:C21,3,FALSE)","v":{"$error":"#N/A"}},{"$f":"VLOOKUP(A8,Kode!A2:B21,2,FALSE)","v":{"$error":"#N/A"}},{"$f":"VLOOKUP(A8,Kode!A2:D21,4,FALSE)","v":{"$error":"#N/A"}},null,null,null,null,null,null,null,null,null,null,null,null,null,{"$f":"VLOOKUP(A8,Kode!A2:E21,5,FALSE)","v":{"$error":"#N/A"}},null,null,null,null,null,{"$error":"#DIV/0!"}]
[null,{"$f":"VLOOKUP(A9,Kode!A2:C21,3,FALSE)","v":{"$error":"#N/A"}},{"$f":"VLOOKUP(A9,Kode!A2:B21,2,FALSE)","v":{"$error":"#N/A"}},{"$f":"VLOOKUP(A9,Kode!A2:D21,4,FALSE)","v":{"$error":"#N/A"}},null,null,null,null,null,null,null,null,null,null,null,null,null,{"$f":"VLOOKUP(A9,Kode!A2:E21,5,FALSE)","v":{"$error":"#N/A"}},null,null,null,null,null,{"$error":"#DIV/0!"}]
[null,{"$f":"VLOOKUP(A10,Kode!A2:C21,3,FALSE)","v":{"$error":"#N/A"}},{"$f":"VLOOKUP(A10,Kode!A2:B21,2,FALSE)","v":{"$error":"#N/A"}},{"$f":"VLOOKUP(A10,Kode!A2:D21,4,FALSE)","v":{"$error":"#N/A"}},null,null,null,null,null,null,null,null,null,null,null,null,null,{"$f":"VLOOKUP(A10,Kode!A2:E21,5,FALSE)","v":{"$error":"#N/A"}},null,null,null,null,null,{"$error":"#DIV/0!"}]
[null,{"$f":"VLOOKUP(A11,Kode!A2:C21,3,FALSE)","v":{"$error":"#N/A"}},{"$f":"VLOOKUP(A11,Kode!A2:B21,2,FALSE)","v":{"$error":"#N/A"}},{"$f":"VLOOKUP(A11,Kode!A2:D21,4,FALSE)","v":{"$error":"#N/A"}},null,null,null,null,null,null,null,null,null,null,null,null,null,{"$f":"VLOOKUP(A11,Kode!A2:E21,5,FALSE)","v":{"$error":"#N/A"}},null,null,null,null,null,{"$error":"#DIV/0!"}]
[null,{"$f":"VLOOKUP(A12,Kode!A2:C21,3,FALSE)","v":{"$error":"#N/A"}},{"$f":"VLOOKUP(A12,Kode!A2:B21,2,FALSE)","v":{"$error":"#N/A"}},{"$f":"VLOOKUP(A12,Kode!A2:D21,4,FALSE)","v":{"$error":"#N/A"}},null,null,null,null,null,null,null,null,null,null,null,null,null,{"$f":"VLOOKUP(A12,Kode!A2:E21,5,FALSE)","v":{"$error":"#N/A"}},null,null,null,null,null,{"$error":"#DIV/0!"}]
[null,{"$f":"VLOOKUP(A13,Kode!A2:C21,3,FALSE)","v":{"$error":"#N/A"}},{"$f":"VLOOKUP(A13,Kode!A2:B21,2,FALSE)","v":{"$error":"#N/A"}},{"$f":"VLOOKUP(A13,Kode!A2:D21,4,FALSE)","v":{"$error":"#N/A"}},null,null,null,null,null,null,null,null,null,null,null,null,null,{"$f":"VLOOKUP(A13,Kode!A2:E21,5,FALSE)","v":{"$error":"#N/A"}},null,null,null,null,null,{"$error":"#DIV/0!"}]
[null,{"$f":"VLOOKUP(A14,Kode!A2:C21,3,FALSE)","v":{"$error":"#N/A"}},{"$f":"VLOOKUP(A14,Kode!A2:B21,2,FALSE)","v":{"$error":"#N/A"}},{"$f":"VLOOKUP(A14,Kode!A2:D21,4,FALSE)","v":{"$error":"#N/A"}},null,null,null,null,null,null,null,null,null,null,null,null,null,{"$f":"VLOOKUP(A14,Kode!A2:E21,5,FALSE)","v":{"$error":"#N/A"}},null,null,null,null,null,{"$error":"#DIV/0!"}]
[null,{"$f":"VLOOKUP(A15,Kode!A2:C21,3,FALSE)","v":{"$error":"#N/A"}},{"$f":"VLOOKUP(A15,Kode!A2:B21,2,FALSE)","v":{"$error":"#N/A"}},{"$f":"VLOOKUP(A15,Kode!A2:D21,4,FALSE)","v":{"$error":"#N/A"}},null,null,null,null,null,null,null,null,null,null,null,null,null,{"$f":"VLOOKUP(A15,Kode!A2:E21,5,FALSE)","v":{"$error":"#N/A"}},null,null,null,null,null,{"$error":"#DIV/0!"}]
[null,{"$f":"VLOOKUP(A16,Kode!A2:C21,3,FALSE)","v":{"$error":"#N/A"}},{"$f":"VLOOKUP(A16,Kode!A2:B21,2,FALSE)","v":{"$error":"#N/A"}},{"$f":"VLOOKUP(A16,Kode!A2:D21,4,FALSE)","v":{"$error":"#N/A"}},null,null,null,null,null,null,null,null,null,null,null,null,null,{"$f":"VLOOKUP(A16,Kode!A2:E21,5,FALSE)","v":{"$error":"#N/A"}},null,null,null,null,null,{"$error":"#DIV/0!"}]
[null,{"$f":"VLOOKUP(A17,Kode!A2:C21,3,FALSE)","v":{"$error":"#N/A"}},{"$f":"VLOOKUP(A17,Kode!A2:B21,2,FALSE)","v":{"$error":"#N/A"}},{"$f":"VLOOKUP(A17,Kode!A2:D21,4,FALSE)","v":{"$error":"#N/A"}},null,null,null,null,null,null,null,null,null,null,null,null,null,{"$f":"VLOOKUP(A17,Kode!A2:E21,5,FALSE)","v":{"$error":"#N/A"}},null,null,null,null,null,{"$error":"#DIV/0!"}]
[null,{"$f":"VLOOKUP(A18,Kode!A2:C21,3,FALSE)","v":{"$error":"#N/A"}},{"$f":"VLOOKUP(A18,Kode!A2:B21,2,FALSE)","v":{"$error":"#N/A"}},{"$f":"VLOOKUP(A18,Kode!A2:D21,4,FALSE)","v":{"$error":"#N/A"}},null,null,null,null,null,null,null,null,null,null,null,null,null,{"$f":"VLOOKUP(A18,Kode!A2:E21,5,FALSE)","v":{"$error":"#N/A"}},null,null,null,null,null,{"$error":"#DIV/0!"}]
[null,{"$f":"VLOOKUP(A19,Kode!A2:C21,3,FALSE)","v":{"$error":"#N/A"}},{"$f":"VLOOKUP(A19,Kode!A2:B21,2,FALSE)","v":{"$error":"#N/A"}},{"$f":"VLOOKUP(A19,Kode!A2:D21,4,FALSE)","v":{"$error":"#N/A"}},null,null,null,null,null,null,null,null,null,null,null,null,null,{"$f":"VLOOKUP(A19,Kode!A2:E21,5,FALSE)","v":{"$error":"#N/A"}},null,null,null,null,null,{"$error":"#DIV/0!"}]
[null,{"$f":"VLOOKUP(A20,Kode!A2:C21,3,FALSE)","v":{"$error":"#N/A"}},{"$f":"VLOOKUP(A20,Kode!A2:B21,2,FALSE)","v":{"$error":"#N/A"}},{"$f":"VLOOKUP(A20,Kode!A2:D21,4,FALSE)","v":{"$error":"#N/A"}},null,null,null,null,null,null,null,null,null,null,null,null,null,{"$f":"VLOOKUP(A20,Kode!A2:E21,5,FALSE)","v":{"$error":"#N/A"}},null,null,null,null,null,{"$error":"#DIV/0!"}]
[null,{"$f":"VLOOKUP(A21,Kode!A2:C21,3,FALSE)","v":{"$error":"#N/A"}},{"$f":"VLOOKUP(A21,Kode!A2:B21,2,FALSE)","v":{"$error":"#N/A"}},{"$f":"VLOOKUP(A21,Kode!A2:D21,4,FALSE)","v":{"$error":"#N/A"}},null,null,null,null,null,null,null,null,null,null,null,null,null,{"$f":"VLOOKUP(A21,Kode!A2:E21,5,FALSE)","v":{"$error":"#N/A"}},null,null,null,null,null,{"$error":"#DIV/0!"}]
[null,{"$f":"VLOOKUP(A22,Kode!A2:C21,3,FALSE)","v":{"$error":"#N/A"}},{"$f":"VLOOKUP(A22,Kode!A2:B21,2,FALSE)","v":{"$error":"#N/A"}},{"$f":"VLOOKUP(A22,Kode!A2:D21,4,FALSE)","v":{"$error":"#N/A"}},null,null,null,null,null,null,null,null,null,null,null,null,null,{"$f":"VLOOKUP(A22,Kode!A2:E21,5,FALSE)","v":{"$error":"#N/A"}},null,null,null,null,null,{"$error":"#DIV/0!"}]
[null,{"$f":"VLOOKUP(A23,Kode!A2:C21,3,FALSE)","v":{"$error":"#N/A"}},{"$f":"VLOOKUP(A23,Kode!A2:B21,2,FALSE)","v":{"$error":"#N/A"}},{"$f":"VLOOKUP(A23,Kode!A2:D21,4,FALSE)","v":{"$error":"#N/A"}},null,null,null,null,null,null,null,null,null,null,null,null,null,{"$f":"VLOOKUP(A23,Kode!A2:E21,5,FALSE)","v":{"$error":"#N/A"}},null,null,null,null,null,{"$error":"#DIV/0!"}]
[null,{"$f":"VLOOKUP(A24,Kode!A2:C21,3,FALSE)","v":{"$error":"#N/A"}},{"$f":"VLOOKUP(A24,Kode!A2:B21,2,FALSE)","v":{"$error":"#N/A"}},{"$f":"VLOOKUP(A24,Kode!A2:D21,4,FALSE)","v":{"$error":"#N/A"}},null,null,null,null,null,null,null,null,null,null,null,null,null,{"$f":"VLOOKUP(A24,Kode!A2:E21,5,FALSE)","v":{"$error":"#N/A"}},null,null,null,null,null,{"$error":"#DIV/0!"}]
[null,{"$f":"VLOOKUP(A25,Kode!A2:C21,3,FALSE)","v":{"$error":"#N/A"}},{"$f":"VLOOKUP(A25,Kode!A2:B21,2,FALSE)","v":{"$error":"#N/A"}},{"$f":"VLOOKUP(A25,Kode!A2:D21,4,FALSE)","v":{"$error":"#N/A"}},null,null,null,null,null,null,null,null,null,null,null,null,null,{"$f":"VLOOKUP(A25,Kode!A2:E21,5,FALSE)","v":{"$error":"#N/A"}},null,null,null,null,null,{"$error":"#DIV/0!"}]
[null,{"$f":"VLOOKUP(A26,Kode!A2:C21,3,FALSE)","v":{"$error":"#N/A"}},{"$f":"VLOOKUP(A26,Kode!A2:B21,2,FALSE)","v":{"$error":"#N/A"}},{"$f":"VLOOKUP(A26,Kode!A2:D21,4,FALSE)","v":{"$error":"#N/A"}},null,null,null,null,null,null,null,null,null,null,null,null,null,{"$f":"VLOOKUP(A26,Kode!A2:E21,5,FALSE)","v":{"$error":"#N/A"}},null,null,null,null,null,{"$error":"#DIV/0!"}]
[null,{"$f":"VLOOKUP(A27,Kode!A2:C21,3,FALSE)","v":{"$error":"#N/A"}},{"$f":"VLOOKUP(A27,Kode!A2:B21,2,FALSE)","v":{"$error":"#N/A"}},{"$f":"VLOOKUP(A27,Kode!A2:D21,4,FALSE)","v":{"$error":"#N/A"}},null,null,null,null,null,null,null,null,null,null,null,null,null,{"$f":"VLOOKUP(A27,Kode!A2:E21,5,FALSE)","v":{"$error":"#N/A"}},null,null,null,null,null,{"$error":"#DIV/0!"}]
[null,{"$f":"VLOOKUP(A28,Kode!A2:C21,3,FALSE)","v":{"$error":"#N/A"}},{"$f":"VLOOKUP(A28,Kode!A2:B21,2,FALSE)","v":{"$error":"#N/A"}},{"$f":"VLOOKUP(A28,Kode!A2:D21,4,FALSE)","v":{"$error":"#N/A"}},null,null,null,null,null,null,null,null,null,null,null,null,null,{"$f":"VLOOKUP(A28,Kode!A2:E21,5,FALSE)","v":{"$error":"#N/A"}},null,null,null,null,null,{"$error":"#DIV/0!"}]
[null,{"$f":"VLOOKUP(A29,Kode!A2:C21,3,FALSE)","v":{"$error":"#N/A"}},{"$f":"VLOOKUP(A29,Kode!A2:B21,2,FALSE)","v":{"$error":"#N/A"}},{"$f":"VLOOKUP(A29,Kode!A2:D21,4,FALSE)","v":{"$error":"#N/A"}},null,null,null,null,null,null,null,null,null,null,null,null,null,{"$f":"VLOOKUP(A29,Kode!A2:E21,5,FALSE)","v":{"$error":"#N/A"}},null,null,null,null,null,{"$error":"#DIV/0!"}]
[null,{"$f":"VLOOKUP(A30,Kode!A2:C21,3,FALSE)","v":{"$error":"#N/A"}},{"$f":"VLOOKUP(A30,Kode!A2:B21,2,FALSE)","v":{"$error":"#N/A"}},{"$f":"VLOOKUP(A30,Kode!A2:D21,4,FALSE)","v":{"$error":"#N/A"}},null,null,null,null,null,null,null,null,null,null,null,null,null,{"$f":"VLOOKUP(A30,Kode!A2:E21,5,FALSE)","v":{"$error":"#N/A"}},null,null,null,null,null,{"$error":"#DIV/0!"}]
[null,{"$f":"VLOOKUP(A31,Kode!A2:C21,3,FALSE)","v":{"$error":"#N/A"}},{"$f":"VLOOKUP(A31,Kode!A2:B21,2,FALSE)","v":{"$error":"#N/A"}},{"$f":"VLOOKUP(A31,Kode!A2:D21,4,FALSE)","v":{"$error":"#N/A"}},null,null,null,null,null,null,null,null,null,null,null,null,null,{"$f":"VLOOKUP(A31,Kode!A2:E21,5,FALSE)","v":{"$error":"#N/A"}},null,null,null,null,null,{"$error":"#DIV/0!"}]
[null,{"$f":"VLOOKUP(A32,Kode!A2:C21,3,FALSE)","v":{"$error":"#N/A"}},{"$f":"VLOOKUP(A32,Kode!A2:B21,2,FALSE)","v":{"$error":"#N/A"}},{"$f":"VLOOKUP(A32,Kode!A2:D21,4,FALSE)","v":{"$error":"#N/A"}},null,null,null,null,null,null,null,null,null,null,null,null,null,{"$f":"VLOOKUP(A32,Kode!A2:E21,5,FALSE)","v":{"$error":"#N/A"}},null,null,null,null,null,{"$error":"#DIV/0!"}]
[null,{"$f":"VLOOKUP(A33,Kode!A2:C21,3,FALSE)","v":{"$error":"#N/A"}},{"$f":"VLOOKUP(A33,Kode!A2:B21,2,FALSE)","v":{"$error":"#N/A"}},{"$f":"VLOOKUP(A33,Kode!A2:D21,4,FALSE)","v":{"$error":"#N/A"}},null,null,null,null,null,null,null,null,null,null,null,null,null,{"$f":"VLOOKUP(A33,Kode!A2:E21,5,FALSE)","v":{"$error":"#N/A"}},null,null,null,null,null,{"$error":"#DIV/0!"}]
[null,{"$f":"VLOOKUP(A34,Kode!A2:C21,3,FALSE)","v":{"$error":"#N/A"}},{"$f":"VLOOKUP(A34,Kode!A2:B21,2,FALSE)","v":{"$error":"#N/A"}},{"$f":"VLOOKUP(A34,Kode!A2:D21,4,FALSE)","v":{"$error":"#N/A"}},null,null,null,null,null,null,null,null,null,null,null,null,null,{"$f":"VLOOKUP(A34,Kode!A2:E21,5,FALSE)","v":{"$error":"#N/A"}},null,null,null,null,null,{"$error":"#DIV/0!"}]
[null,{"$f":"VLOOKUP(A35,Kode!A2:C21,3,FALSE)","v":{"$error":"#N/A"}},{"$f":"VLOOKUP(A35,Kode!A2:B21,2,FALSE)","v":{"$error":"#N/A"}},{"$f":"VLOOKUP(A35,Kode!A2:D21,4,FALSE)","v":{"$error":"#N/A"}},null,null,null,null,null,null,null,null,null,null,null,null,null,{"$f":"VLOOKUP(A35,Kode!A2:E21,5,FALSE)","v":{"$error":"#N/A"}},null,null,null,null,null,{"$error":"#DIV/0!"}]
[null,{"$f":"VLOOKUP(A36,Kode!A2:C21,3,FALSE)","v":{"$error":"#N/A"}},{"$f":"VLOOKUP(A36,Kode!A2:B21,2,FALSE)","v":{"$error":"#N/A"}},{"$f":"VLOOKUP(A36,Kode!A2:D21,4,FALSE)","v":{"$error":"#N/A"}},null,null,null,null,null,null,null,null,null,null,null,null,null,{"$f":"VLOOKUP(A36,Kode!A2:E21,5,FALSE)","v":{"$error":"#N/A"}},null,null,null,null,null,{"$error":"#DIV/0!"}]
[null,{"$f":"VLOOKUP(A37,Kode!A2:C21,3,FALSE)","v":{"$error":"#N/A"}},{"$f":"VLOOKUP(A37,Kode!A2:B21,2,FALSE)","v":{"$error":"#N/A"}},{"$f":"VLOOKUP(A37,Kode!A2:D21,4,FALSE)","v":{"$error":"#N/A"}},null,null,null,null,null,null,null,null,null,null,null,null,null,{"$f":"VLOOKUP(A37,Kode!A2:E21,5,FALSE)","v":{"$error":"#N/A"}},null,null,null,null,null,{"$error":"#DIV/0!"}]
[null,{"$f":"VLOOKUP(A38,Kode!A2:C21,3,FALSE)","v":{"$error":"#N/A"}},{"$f":"VLOOKUP(A38,Kode!A2:B21,2,FALSE)","v":{"$error":"#N/A"}},{"$f":"VLOOKUP(A38,Kode!A2:D21,4,FALSE)","v":{"$error":"#N/A"}},null,null,null,null,null,null,null,null,null,null,null,null,null,{"$f":"VLOOKUP(A38,Kode!A2:E21,5,FALSE)","v":{"$error":"#N/A"}},null,null,null,null,null,{"$error":"#DIV/0!"}]
[null,{"$f":"VLOOKUP(A39,Kode!A2:C21,3,FALSE)","v":{"$error":"#N/A"}},{"$f":"VLOOKUP(A39,Kode!A2:B21,2,FALSE)","v":{"$error":"#N/A"}},{"$f":"VLOOKUP(A39,Kode!A2:D21,4,FALSE)","v":{"$error":"#N/A"}},null,null,null,null,null,null,null,null,null,null,null,null,null,{"$f":"VLOOKUP(A39,Kode!A2:E21,5,FALSE)","v":{"$error":"#N/A"}},null,null,null,null,null,{"$error":"#DIV/0!"}]
[null,{"$f":"VLOOKUP(A40,Kode!A2:C21,3,FALSE)","v":{"$error":"#N/A"}},{"$f":"VLOOKUP(A40,Kode!A2:B21,2,FALSE)","v":{"$error":"#N/A"}},{"$f":"VLOOKUP(A40,Kode!A2:D21,4,FALSE)","v":{"$error":"#N/A"}},null,null,null,null,null,null,null,null,null,null,null,null,null,{"$f":"VLOOKUP(A40,Kode!A2:E21,5,FALSE)","v":{"$error":"#N/A"}},null,null,null,null,null,{"$error":"#DIV/0!"}]
[null,{"$f":"VLOOKUP(A41,Kode!A2:C21,3,FALSE)","v":{"$error":"#N/A"}},{"$f":"VLOOKUP(A41,Kode!A2:B21,2,FALSE)","v":{"$error":"#N/A"}},{"$f":"VLOOKUP(A41,Kode!A2:D21,4,FALSE)","v":{"$error":"#N/A"}},null,null,null,null,null,null,null,null,null,null,null,null,null,{"$f":"VLOOKUP(A41,Kode!A2:E21,5,FALSE)","v":{"$error":"#N/A"}},null,null,null,null,null,{"$error":"#DIV/0!"}]
[null,{"$f":"VLOOKUP(A42,Kode!A2:C21,3,FALSE)","v":{"$error":"#N/A"}},{"$f":"VLOOKUP(A42,Kode!A2:B21,2,FALSE)","v":{"$error":"#N/A"}},{"$f":"VLOOKUP(A42,Kode!A2:D21,4,FALSE)","v":{"$error":"#N/A"}},null,null,null,null,null,null,null,null,null,null,null,null,null,{"$f":"VLOOKUP(A42,Kode!A2:E21,5,FALSE)","v":{"$error":"#N/A"}},null,null,null,null,null,{"$error":"#DIV/0!"}]
[null,{"$f":"VLOOKUP(A43,Kode!A2:C21,3,FALSE)","v":{"$error":"#N/A"}},{"$f":"VLOOKUP(A43,Kode!A2:B21,2,FALSE)","v":{"$error":"#N/A"}},{"$f":"VLOOKUP(A43,Kode!A2:D21,4,FALSE)","v":{"$error":"#N/A"}},null,null,null,null,null,null,null,null,null,null,null,null,null,{"$f":"VLOOKUP(A43,Kode!A2:E21,5,FALSE)","v":{"$error":"#N/A"}},null,null,null,null,null,{"$error":"#DIV/0!"}]
[null,{"$f":"VLOOKUP(A44,Kode!A2:C21,3,FALSE)","v":{"$error":"#N/A"}},{"$f":"VLOOKUP(A44,Kode!A2:B21,2,FALSE)","v":{"$error":"#N/A"}},{"$f":"VLOOKUP(A44,Kode!A2:D21,4,FALSE)","v":{"$error":"#N/A"}},null,null,null,null,null,null,null,null,null,null,null,null,null,{"$f":"VLOOKUP(A44,Kode!A2:E21,5,FALSE)","v":{"$error":"#N/A"}},null,null,null,null,null,{"$error":"#DIV/0!"}]
[null,{"$f":"VLOOKUP(A45,Kode!A2:C21,3,FALSE)","v":{"$error":"#N/A"}},{"$f":"VLOOKUP(A45,Kode!A2:B21,2,FALSE)","v":{"$error":"#N/A"}},{"$f":"VLOOKUP(A45,Kode!A2:D21,4,FALSE)","v":{"$error":"#N/A"}},null,null,null,null,null,null,null,null,null,null,null,null,null,{"$f":"VLOOKUP(A45,Kode!A2:E21,5,FALSE)","v":{"$error":"#N/A"}},null,null,null,null,null,{"$error":"#DIV/0!"}]
[null,{"$f":"VLOOKUP(A46,Kode!A2:C21,3,FALSE)","v":{"$error":"#N/A"}},{"$f":"VLOOKUP(A46,Kode!A2:B21,2,FALSE)","v":{"$error":"#N/A"}},{"$f":"VLOOKUP(A46,Kode!A2:D21,4,FALSE)","v":{"$error":"#N/A"}},null,null,null,null,null,null,null,null,null,null,null,null,null,{"$f":"VLOOKUP(A46,Kode!A2:E21,5,FALSE)","v":{"$error":"#N/A"}},null,null,null,null,null,{"$error":"#DIV/0!"}]
[null,{"$f":"VLOOKUP(A47,Kode!A2:C21,3,FALSE)","v":{"$error":"#N/A"}},{"$f":"VLOOKUP(A47,Kode!A2:B21,2,FALSE)","v":{"$error":"#N/A"}},{"$f":"VLOOKUP(A47,Kode!A2:D21,4,FALSE)","v":{"$error":"#N/A"}},null,null,null,null,null,null,null,null,null,null,null,null,null,{"$f":"VLOOKUP(A47,Kode!A2:E21,5,FALSE)","v":{"$error":"#N/A"}},null,null,null,null,null,{"$error":"#DIV/0!"}]
[null,{"$f":"VLOOKUP(A48,Kode!A2:C21,3,FALSE)","v":{"$error":"#N/A"}},{"$f":"VLOOKUP(A48,Kode!A2:B21,2,FALSE)","v":{"$error":"#N/A"}},{"$f":"VLOOKUP(A48,Kode!A2:D21,4,FALSE)","v":{"$error":"#N/A"}},null,null,null,null,null,null,null,null,null,null,null,null,null,{"$f":"VLOOKUP(A48,Kode!A2:E21,5,FALSE)","v":{"$error":"#N/A"}},null,null,null,null,null,{"$error":"#DIV/0!"}]
[null,{"$f":"VLOOKUP(A49,Kode!A2:C21,3,FALSE)","v":{"$error":"#N/A"}},{"$f":"VLOOKUP(A49,Kode!A2:B21,2,FALSE)","v":{"$error":"#N/A"}},{"$f":"VLOOKUP(A49,Kode!A2:D21,4,FALSE)","v":{"$error":"#N/A"}},null,null,null,null,null,null,null,null,null,null,null,null,null,{"$f":"VLOOKUP(A49,Kode!A2:E21,5,FALSE)","v":{"$error":"#N/A"}},null,null,null,null,null,{"$error":"#DIV/0!"}]
[null,{"$f":"VLOOKUP(A50,Kode!A2:C21,3,FALSE)","v":{"$error":"#N/A"}},{"$f":"VLOOKUP(A50,Kode!A2:B21,2,FALSE)","v":{"$error":"#N/A"}},{"$f":"VLOOKUP(A50,Kode!A2:D21,4,FALSE)","v":{"$error":"#N/A"}},null,null,null,null,null,null,null,null,null,null,null,null,null,{"$f":"VLOOKUP(A50,Kode!A2:E21,5,FALSE)","v":{"$error":"#N/A"}},null,null,null,null,null,{"$error":"#DIV/0!"}]
[null,{"$f":"VLOOKUP(A51,Kode!A2:C21,3,FALSE)","v":{"$error":"#N/A"}},{"$f":"VLOOKUP(A51,Kode!A2:B21,2,FALSE)","v":{"$error":"#N/A"}},{"$f":"VLOOKUP(A51,Kode!A2:D21,4,FALSE)","v":{"$error":"#N/A"}},null,null,null,null,null,null,null,null,null,null,null,null,null,{"$f":"VLOOKUP(A51,Kode!A2:E21,5,FALSE)","v":{"$error":"#N/A"}},null,null,null,null,null,{"$error":"#DIV/0!"}]
[null,{"$f":"VLOOKUP(A52,Kode!A2:C21,3,FALSE)","v":{"$error":"#N/A"}},{"$f":"VLOOKUP(A52,Kode!A2:B21,2,FALSE)","v":{"$error":"#N/A"}},{"$f":"VLOOKUP(A52,Kode!A2:D21,4,FALSE)","v":{"$error":"#N/A"}},null,null,null,null,null,null,null,null,null,null,null,null,null,{"$f":"VLOOKUP(A52,Kode!A2:E21,5,FALSE)","v":{"$error":"#N/A"}},null,null,null,null,null,{"$error":"#DIV/0!"}]
[null,{"$f":"VLOOKUP(A53,Kode!A2:C21,3,FALSE)","v":{"$error":"#N/A"}},{"$f":"VLOOKUP(A53,Kode!A2:B21,2,FALSE)","v":{"$error":"#N/A"}},{"$f":"VLOOKUP(A53,Kode!A2:D21,4,FALSE)","v":{"$error":"#N/A"}},null,null,null,null,null,null,null,null,null,null,null,null,null,{"$f":"VLOOKUP(A53,Kode!A2:E21,5,FALSE)","v":{"$error":"#N/A"}},null,null,null,null,null,{"$error":"#DIV/0!"}]
[null,{"$f":"VLOOKUP(A54,Kode!A2:C21,3,FALSE)","v":{"$error":"#N/A"}},{"$f":"VLOOKUP(A54,Kode!A2:B21,2,FALSE)","v":{"$error":"#N/A"}},{"$f":"VLOOKUP(A54,Kode!A2:D21,4,FALSE)","v":{"$error":"#N/A"}},null,null,null,null,null,null,null,null,null,null,null,null,null,{"$f":"VLOOKUP(A54,Kode!A2:E21,5,FALSE)","v":{"$error":"#N/A"}},null,null,null,null,null,{"$error":"#DIV/0!"}]
[null,{"$f":"VLOOKUP(A55,Kode!A2:C21,3,FALSE)","v":{"$error":"#N/A"}},{"$f":"VLOOKUP(A55,Kode!A2:B21,2,FALSE)","v":{"$error":"#N/A"}},{"$f":"VLOOKUP(A55,Kode!A2:D21,4,FALSE)","v":{"$error":"#N/A"}},null,null,null,null,null,null,null,null,null,null,null,null,null,{"$f":"VLOOKUP(A55,Kode!A2:E21,5,FALSE)","v":{"$error":"#N/A"}},null,null,null,null,null,{"$error":"#DIV/0!"}]
[null,{"$f":"VLOOKUP(A56,Kode!A2:C21,3,FALSE)","v":{"$error":"#N/A"}},{"$f":"VLOOKUP(A56,Kode!A2:B21,2,FALSE)","v":{"$error":"#N/A"}},{"$f":"VLOOKUP(A56,Kode!A2:D21,4,FALSE)","v":{"$error":"#N/A"}},null,null,null,null,null,null,null,null,null,null,null,null,null,{"$f":"VLOOKUP(A56,Kode!A2:E21,5,FALSE)","v":{"$error":"#N/A"}},null,null,null,null,null,{"$error":"#DIV/0!"}]
[null,{"$f":"VLOOKUP(A57,Kode!A2:C21,3,FALSE)","v":{"$error":"#N/A"}},{"$f":"VLOOKUP(A57,Kode!A2:B21,2,FALSE)","v":{"$error":"#N/A"}},{"$f":"VLOOKUP(A57,Kode!A2:D21,4,FALSE)","v":{"$error":"#N/A"}},null,null,null,null,null,null,null,null,null,null,null,null,null,{"$f":"VLOOKUP(A57,Kode!A2:E21,5,FALSE)","v":{"$error":"#N/A"}},null,null,null,null,null,{"$error":"#DIV/0!"}]
[null,{"$f":"VLOOKUP(A58,Kode!A2:C21,3,FALSE)","v":{"$error":"#N/A"}},{"$f":"VLOOKUP(A58,Kode!A2:B21,2,FALSE)","v":{"$error":"#N/A"}},{"$f":"VLOOKUP(A58,Kode!A2:D21,4,FALSE)","v":{"$error":"#N/A"}},null,null,null,null,null,null,null,null,null,null,null,null,null,{"$f":"VLOOKUP(A58,Kode!A2:E21,5,FALSE)","v":{"$error":"#N/A"}},null,null,null,null,null,{"$error":"#DIV/0!"}]
[null,{"$f":"VLOOKUP(A59,Kode!A2:C21,3,FALSE)","v":{"$error":"#N/A"}},{"$f":"VLOOKUP(A59,Kode!A2:B21,2,FALSE)","v":{"$error":"#N/A"}},{"$f":"VLOOKUP(A59,Kode!A2:D21,4,FALSE)","v":{"$error":"#N/A"}},null,null,null,null,null,null,null,null,null,null,null,null,null,{"$f":"VLOOKUP(A59,Kode!A2:E21,5,FALSE)","v":{"$error":"#N/A"}},null,null,null,null,null,{"$error":"#DIV/0!"}]
[null,{"$f":"VLOOKUP(A60,Kode!A2:C21,3,FALSE)","v":{"$error":"#N/A"}},{"$f":"VLOOKUP(A60,Kode!A2:B21,2,FALSE)","v":{"$error":"#N/A"}},{"$f":"VLOOKUP(A60,Kode!A2:D21,4,FALSE)","v":{"$error":"#N/A"}},null,null,null,null,null,null,null,null,null,null,null,null,null,{"$f":"VLOOKUP(A60,Kode!A2:E21,5,FALSE)","v":{"$error":"#N/A"}},null,null,null,null,null,{"$error":"#DIV/0!"}]
[null,{"$f":"VLOOKUP(A61,Kode!A2:C21,3,FALSE)","v":{"$error":"#N/A"}},{"$f":"VLOOKUP(A61,Kode!A2:B21,2,FALSE)","v":{"$error":"#N/A"}},{"$f":"VLOOKUP(A61,Kode!A2:D21,4,FALSE)","v":{"$error":"#N/A"}},null,null,null,null,null,null,null,null,null,null,null,null,null,{"$f":"VLOOKUP(A61,Kode!A2:E21,5,FALSE)","v":{"$error":"#N/A"}},null,null,null,null,null,{"$error":"#DIV/0!"}]
[null,{"$f":"VLOOKUP(A62,Kode!A2:C21,3,FALSE)","v":{"$error":"#N/A"}},{"$f":"VLOOKUP(A62,Kode!A2:B21,2,FALSE)","v":{"$error":"#N/A"}},{"$f":"VLOOKUP(A62,Kode!A2:D21,4,FALSE)","v":{"$error":"#N/A"}},null,null,null,null,null,null,null,null,null,null,null,null,null,{"$f":"VLOOKUP(A62,Kode!A2:E21,5,FALSE)","v":{"$error":"#N/A"}},null,null,null,null,null,{"$error":"#DIV/0!"}]
[null,{"$f":"VLOOKUP(A63,Kode!A2:C21,3,FALSE)","v":{"$error":"#N/A"}},{"$f":"VLOOKUP(A63,Kode!A2:B21,2,FALSE)","v":{"$error":"#N/A"}},{"$f":"VLOOKUP(A63,Kode!A2:D21,4,FALSE)","v":{"$error":"#N/A"}},null,null,null,null,null,null,null,null,null,null,null,null,null,{"$f":"VLOOKUP(A63,Kode!A2:E21,5,FALSE)","v":{"$error":"#N/A"}},null,null,null,null,null,{"$error":"#DIV/0!"}]
[null,{"$f":"VLOOKUP(A64,Kode!A2:C21,3,FALSE)","v":{"$error":"#N/A"}},{"$f":"VLOOKUP(A64,Kode!A2:B21,2,FALSE)","v":{"$error":"#N/A"}},{"$f":"VLOOKUP(A64,Kode!A2:D21,4,FALSE)","v":{"$error":"#N/A"}},null,null,null,null,null,null,null,null,null,null,null,null,null,{"$f":"VLOOKUP(A64,Kode!A2:E21,5,FALSE)","v":{"$error":"#N/A"}},null,null,null,null,null,{"$error":"#DIV/0!"}]
[null,{"$f":"VLOOKUP(A65,Kode!A2:C21,3,FALSE)","v":{"$error":"#N/A"}},{"$f":"VLOOKUP(A65,Kode!A2:B21,2,FALSE)","v":{"$error":"#N/A"}},{"$f":"VLOOKUP(A65,Kode!A2:D21,4,FALSE)","v":{"$error":"#N/A"}},null,null,null,null,null,null,null,null,null,null,null,null,null,{"$f":"VLOOKUP(A65,Kode!A2:E21,5,FALSE)","v":{"$error":"#N/A"}},null,null,null,null,null,{"$error":"#DIV/0!"}]
[null,{"$f":"VLOOKUP(A66,Kode!A2:C21,3,FALSE)","v":{"$error":"#N/A"}},{"$f":"VLOOKUP(A66,Kode!A2:B21,2,FALSE)","v":{"$error":"#N/A"}},{"$f":"VLOOKUP(A66,Kode!A2:D21,4,FALSE)","v":{"$error":"#N/A"}},null,null,null,null,null,null,null,null,null,null,null,null,null,{"$f":"VLOOKUP(A66,Kode!A2:E21,5,FALSE)","v":{"$error":"#N/A"}},null,null,null,null,null,{"$error":"#DIV/0!"}]
[null,{"$f":"VLOOKUP(A67,Kode!A2:C21,3,FALSE)","v":{"$error":"#N/A"}},{"$f":"VLOOKUP(A67,Kode!A2:B21,2,FALSE)","v":{"$error":"#N/A"}},{"$f":"VLOOKUP(A67,Kode!A2:D21,4,FALSE)","v":{"$error":"#N/A"}},null,null,null,null,null,null,null,null,null,null,null,null,null,{"$f":"VLOOKUP(A67,Kode!A2:E21,5,FALSE)","v":{"$error":"#N/A"}},null,null,null,null,null,{"$f":"V67/T67*100","v":{"$error":"#DIV/0!"}}]
[null,{"$f":"VLOOKUP(A68,Kode!A2:C21,3,FALSE)","v":{"$error":"#N/A"}},{"$f":"VLOOKUP(A68,Kode!A2:B21,2,FALSE)","v":{"$error":"#N/A"}},{"$f":"VLOOKUP(A68,Kode!A2:D21,4,FALSE)","v":{"$error":"#N/A"}},null,null,null,null,null,null,null,null,null,null,null,null,null,{"$f":"VLOOKUP(A68,Kode!A2:E21,5,FALSE)","v":{"$error":"#N/A"}},null,null,null,null,null,{"$error":"#DIV/0!"}]
[null,{"$f":"VLOOKUP(A69,Kode!A2:C21,3,FALSE)","v":{"$error":"#N/A"}},{"$f":"VLOOKUP(A69,Kode!A2:B21,2,FALSE)","v":{"$error":"#N/A"}},{"$f":"VLOOKUP(A69,Kode!A2:D21,4,FALSE)","v":{"$error":"#N/A"}},null,null,null,null,null,null,null,null,null,null,null,null,null,{"$f":"VLOOKUP(A69,Kode!A2:E21,5,FALSE)","v":{"$error":"#N/A"}},null,null,null,null,null,{"$error":"#DIV/0!"}]
[null,{"$f":"VLOOKUP(A70,Kode!A2:C21,3,FALSE)","v":{"$error":"#N/A"}},{"$f":"VLOOKUP(A70,Kode!A2:B21,2,FALSE)","v":{"$error":"#N/A"}},{"$f":"VLOOKUP(A70,Kode!A2:D21,4,FALSE)","v":{"$error":"#N/A"}},null,null,null,null,null,null,null,null,null,null,null,null,null,{"$f":"VLOOKUP(A70,Kode!A2:E21,5,FALSE)","v":{"$error":"#N/A"}},null,null,null,null,null,{"$error":"#DIV/0!"}]
[null,{"$f":"VLOOKUP(A71,Kode!A2:C21,3,FALSE)","v":{"$error":"#N/A"}},{"$f":"VLOOKUP(A71,Kode!A2:B21,2,FALSE)","v":{"$error":"#N/A"}},{"$f":"VLOOKUP(A71,Kode!A2:D21,4,FALSE)","v":{"$error":"#N/A"}},null,null,null,null,null,null,null,null,null,null,null,null,null,{"$f":"VLOOKUP(A71,Kode!A2:E21,5,FALSE)","v":{"$error":"#N/A"}},null,null,null,null,null,{"$error":"#DIV/0!"}]
[null,{"$f":"VLOOKUP(A72,Kode!A2:C21,3,FALSE)","v":{"$error":"#N/A"}},{"$f":"VLOOKUP(A72,Kode!A2:B21,2,FALSE)","v":{"$error":"#N/A"}},{"$f":"VLOOKUP(A72,Kode!A2:D21,4,FALSE)","v":{"$error":"#N/A"}},null,null,null,null,null,null,null,null,null,null,null,null,null,{"$f":"VLOOKUP(A72,Kode!A2:E21,5,FALSE)","v":{"$error":"#N/A"}},null,null,null,null,null,{"$error":"#DIV/0!"}]
[null,{"$f":"VLOOKUP(A73,Kode!A2:C21,3,FALSE)","v":{"$error":"#N/A"}},{"$f":"VLOOKUP(A73,Kode!A2:B21,2,FALSE)","v":{"$error":"#N/A"}},{"$f":"VLOOKUP(A73,Kode!A2:D21,4,FALSE)","v":{"$error":"#N/A"}},null,null,null,null,null,null,null,null,null,null,null,null,null,{"$f":"VLOOKUP(A73,Kode!A2:E21,5,FALSE)","v":{"$error":"#N/A"}},null,null,null,null,null,{"$error":"#DIV/0!"}]
[null,{"$f":"VLOOKUP(A74,Kode!A2:C21,3,FALSE)","v":{"$error":"#N/A"}},{"$f":"VLOOKUP(A74,Kode!A2:B21,2,FALSE)","v":{"$error":"#N/A"}},{"$f":"VLOOKUP(A74,Kode!A2:D21,4,FALSE)","v":{"$error":"#N/A"}},null,null,null,null,null,null,null,null,null,null,null,null,null,{"$f":"VLOOKUP(A74,Kode!A2:E21,5,FALSE)","v":{"$error":"#N/A"}},null,null,null,null,null,{"$error":"#DIV/0!"}]
[null,{"$f":"VLOOKUP(A75,Kode!A2:C21,3,FALSE)","v":{"$error":"#N/A"}},{"$f":"VLOOKUP(A75,Kode!A2:B21,2,FALSE)","v":{"$error":"#N/A"}},{"$f":"VLOOKUP(A75,Kode!A2:D21,4,FALSE)","v":{"$error":"#N/A"}},null,null,null,null,null,null,null,null,null,null,null,null,null,{"$f":"VLOOKUP(A75,Kode!A2:E21,5,FALSE)","v":{"$error":"#N/A"}},null,null,null,null,null,{"$error":"#DIV/0!"}]
[null,{"$f":"VLOOKUP(A76,Kode!A2:C21,3,FALSE)","v":{"$error":"#N/A"}},{"$f":"VLOOKUP(A76,Kode!A2:B21,2,FALSE)","v":{"$error":"#N/A"}},{"$f":"VLOOKUP(A76,Kode!A2:D21,4,FALSE)","v":{"$error":"#N/A"}},null,null,null,null,null,null,null,null,null,null,null,null,null,{"$f":"VLOOKUP(A76,Kode!A2:E21,5,FALSE)","v":{"$error":"#N/A"}},null,null,null,null,null,{"$error":"#DIV/0!"}]
[null,{"$f":"VLOOKUP(A77,Kode!A2:C21,3,FALSE)","v":{"$error":"#N/A"}},{"$f":"VLOOKUP(A77,Kode!A2:B21,2,FALSE)","v":{"$error":"#N/A"}},{"$f":"VLOOKUP(A77,Kode!A2:D21,4,FALSE)","v":{"$error":"#N/A"}},null,null,null,null,null,null,null,null,null,null,null,null,null,{"$f":"VLOOKUP(A77,Kode!A2:E21,5,FALSE)","v":{"$error":"#N/A"}},null,null,null,null,null,{"$error":"#DIV/0!"}]
[null,{"$f":"VLOOKUP(A78,Kode!A2:C21,3,FALSE)","v":{"$error":"#N/A"}},{"$f":"VLOOKUP(A78,Kode!A2:B21,2,FALSE)","v":{"$error":"#N/A"}},{"$f":"VLOOKUP(A78,Kode!A2:D21,4,FALSE)","v":{"$error":"#N/A"}},null,null,null,null,null,null,null,null,null,null,null,null,null,{"$f":"VLOOKUP(A78,Kode!A2:E21,5,FALSE)","v":{"$error":"#N/A"}},null,null,null,null,null,{"$error":"#DIV/0!"}]
[null,{"$f":"VLOOKUP(A79,Kode!A2:C21,3,FALSE)","v":{"$error":"#N/A"}},{"$f":"VLOOKUP(A79,Kode!A2:B21,2,FALSE)","v":{"$error":"#N/A"}},{"$f":"VLOOKUP(A79,Kode!A2:D21,4,FALSE)","v":{"$error":"#N/A"}},null,null,null,null,null,null,null,null,null,null,null,null,null,{"$f":"VLOOKUP(A79,Kode!A2:E21,5,FALSE)","v":{"$error":"#N/A"}},null,null,null,null,null,{"$error":"#DIV/0!"}]
[null,{"$f":"VLOOKUP(A80,Kode!A2:C21,3,FALSE)","v":{"$error":"#N/A"}},{"$f":"VLOOKUP(A80,Kode!A2:B21,2,FALSE)","v":{"$error":"#N/A"}},{"$f":"VLOOKUP(A80,Kode!A2:D21,4,FALSE)","v":{"$error":"#N/A"}},null,null,null,null,null,null,null,null,null,null,null,null,null,{"$f":"VLOOKUP(A80,Kode!A2:E21,5,FALSE)","v":{"$error":"#N/A"}},null,null,null,null,null,{"$error":"#DIV/0!"}]
[null,{"$f":"VLOOKUP(A81,Kode!A2:C21,3,FALSE)","v":{"$error":"#N/A"}},{"$f":"VLOOKUP(A81,Kode!A2:B21,2,FALSE)","v":{"$error":"#N/A"}},{"$f":"VLOOKUP(A81,Kode!A2:D21,4,FALSE)","v":{"$error":"#N/A"}},null,null,null,null,null,null,null,null,null,null,null,null,null,{"$f":"VLOOKUP(A81,Kode!A2:E21,5,FALSE)","v":{"$error":"#N/A"}},null,null,null,null,null,{"$error":"#DIV/0!"}]
[null,{"$f":"VLOOKUP(A82,Kode!A2:C21,3,FALSE)","v":{"$error":"#N/A"}},{"$f":"VLOOKUP(A82,Kode!A2:B21,2,FALSE)","v":{"$error":"#N/A"}},{"$f":"VLOOKUP(A82,Kode!A2:D21,4,FALSE)","v":{"$error":"#N/A"}},null,null,null,null,null,null,null,null,null,null,null,null,null,{"$f":"VLOOKUP(A82,Kode!A2:E21,5,FALSE)","v":{"$error":"#N/A"}},null,null,null,null,null,{"$error":"#DIV/0!"}]
[null,{"$f":"VLOOKUP(A83,Kode!A2:C21,3,FALSE)","v":{"$error":"#N/A"}},{"$f":"VLOOKUP(A83,Kode!A2:B21,2,FALSE)","v":{"$error":"#N/A"}},{"$f":"VLOOKUP(A83,Kode!A2:D21,4,FALSE)","v":{"$error":"#N/A"}},null,null,null,null,null,null,null,null,null,null,null,null,null,{"$f":"VLOOKUP(A83,Kode!A2:E21,5,FALSE)","v":{"$error":"#N/A"}},null,null,null,null,null,{"$error":"#DIV/0!"}]
[null,{"$f":"VLOOKUP(A84,Kode!A2:C21,3,FALSE)","v":{"$error":"#N/A"}},{"$f":"VLOOKUP(A84,Kode!A2:B21,2,FALSE)","v":{"$error":"#N/A"}},{"$f":"VLOOKUP(A84,Kode!A2:D21,4,FALSE)","v":{"$error":"#N/A"}},null,null,null,null,null,null,null,null,null,null,null,null,null,{"$f":"VLOOKUP(A84,Kode!A2:E21,5,FALSE)","v":{"$error":"#N/A"}},null,null,null,null,null,{"$error":"#DIV/0!"}]
[null,{"$f":"VLOOKUP(A85,Kode!A2:C21,3,FALSE)","v":{"$error":"#N/A"}},{"$f":"VLOOKUP(A85,Kode!A2:B21,2,FALSE)","v":{"$error":"#N/A"}},{"$f":"VLOOKUP(A85,Kode!A2:D21,4,FALSE)","v":{"$error":"#N/A"}},null,null,null,null,null,null,null,null,null,null,null,null,null,{"$f":"VLOOKUP(A85,Kode!A2:E21,5,FALSE)","v":{"$error":"#N/A"}},null,null,null,null,null,{"$error":"#DIV/0!"}]
[null,{"$f":"VLOOKUP(A86,Kode!A2:C21,3,FALSE)","v":{"$error":"#N/A"}},{"$f":"VLOOKUP(A86,Kode!A2:B21,2,FALSE)","v":{"$error":"#N/A"}},{"$f":"VLOOKUP(A86,Kode!A2:D21,4,FALSE)","v":{"$error":"#N/A"}},null,null,null,null,null,null,null,null,null,null,null,null,null,{"$f":"VLOOKUP(A86,Kode!A2:E21,5,FALSE)","v":{"$error":"#N/A"}},null,null,null,null,null,{"$error":"#DIV/0!"}]
[null,{"$f":"VLOOKUP(A87,Kode!A2:C21,3,FALSE)","v":{"$error":"#N/A"}},{"$f":"VLOOKUP(A87,Kode!A2:B21,2,FALSE)","v":{"$error":"#N/A"}},{"$f":"VLOOKUP(A87,Kode!A2:D21,4,FALSE)","v":{"$error":"#N/A"}},null,null,null,null,null,null,null,null,null,null,null,null,null,{"$f":"VLOOKUP(A87,Kode!A2:E21,5,FALSE)","v":{"$error":"#N/A"}},null,null,null,null,null,{"$error":"#DIV/0!"}]
[null,{"$f":"VLOOKUP(A88,Kode!A2:C21,3,FALSE)","v":{"$error":"#N/A"}},{"$f":"VLOOKUP(A88,Kode!A2:B21,2,FALSE)","v":{"$error":"#N/A"}},{"$f":"VLOOKUP(A88,Kode!A2:D21,4,FALSE)","v":{"$error":"#N/A"}},null,null,null,null,null,null,null,null,null,null,null,null,null,{"$f":"VLOOKUP(A88,Kode!A2:E21,5,FALSE)","v":{"$error":"#N/A"}},null,null,null,null,null,{"$error":"#DIV/0!"}]
[null,{"$f":"VLOOKUP(A89,Kode!A2:C21,3,FALSE)","v":{"$error":"#N/A"}},{"$f":"VLOOKUP(A89,Kode!A2:B21,2,FALSE)","v":{"$error":"#N/A"}},{"$f":"VLOOKUP(A89,Kode!A2:D21,4,FALSE)","v":{"$error":"#N/A"}},null,null,null,null,null,null,null,null,null,null,null,null,null,{"$f":"VLOOKUP(A89,Kode!A2:E21,5,FALSE)","v":{"$error":"#N/A"}},null,null,null,null,null,{"$error":"#DIV/0!"}]
[null,{"$f":"VLOOKUP(A90,Kode!A2:C21,3,FALSE)","v":{"$error":"#N/A"}},{"$f":"VLOOKUP(A90,Kode!A2:B21,2,FALSE)","v":{"$error":"#N/A"}},{"$f":"VLOOKUP(A90,Kode!A2:D21,4,FALSE)","v":{"$error":"#N/A"}},null,null,null,null,null,null,null,null,null,null,null,null,null,{"$f":"VLOOKUP(A90,Kode!A2:E21,5,FALSE)","v":{"$error":"#N/A"}},null,null,null,null,null,{"$error":"#DIV/0!"}]
[null,{"$f":"VLOOKUP(A91,Kode!A2:C21,3,FALSE)","v":{"$error":"#N/A"}},{"$f":"VLOOKUP(A91,Kode!A2:B21,2,FALSE)","v":{"$error":"#N/A"}},{"$f":"VLOOKUP(A91,Kode!A2:D21,4,FALSE)","v":{"$error":"#N/A"}},null,null,null,null,null,null,null,null,null,null,null,null,null,{"$f":"VLOOKUP(A91,Kode!A2:E21,5,FALSE)","v":{"$error":"#N/A"}},null,null,null,null,null,{"$error":"#DIV/0!"}]
[null,{"$f":"VLOOKUP(A92,Kode!A2:C21,3,FALSE)","v":{"$error":"#N/A"}},{"$f":"VLOOKUP(A92,Kode!A2:B21,2,FALSE)","v":{"$error":"#N/A"}},{"$f":"VLOOKUP(A92,Kode!A2:D21,4,FALSE)","v":{"$error":"#N/A"}},null,null,null,null,null,null,null,null,null,null,null,null,null,{"$f":"VLOOKUP(A92,Kode!A2:E21,5,FALSE)","v":{"$error":"#N/A"}},null,null,null,null,null,{"$error":"#DIV/0!"}]
[null,{"$f":"VLOOKUP(A93,Kode!A2:C21,3,FALSE)","v":{"$error":"#N/A"}},{"$f":"VLOOKUP(A93,Kode!A2:B21,2,FALSE)","v":{"$error":"#N/A"}},{"$f":"VLOOKUP(A93,Kode!A2:D21,4,FALSE)","v":{"$error":"#N/A"}},null,null,null,null,null,null,null,null,null,null,null,null,null,{"$f":"VLOOKUP(A93,Kode!A2:E21,5,FALSE)","v":{"$error":"#N/A"}},null,null,null,null,null,{"$error":"#DIV/0!"}]
[null,{"$f":"VLOOKUP(A94,Kode!A2:C21,3,FALSE)","v":{"$error":"#N/A"}},{"$f":"VLOOKUP(A94,Kode!A2:B21,2,FALSE)","v":{"$error":"#N/A"}},{"$f":"VLOOKUP(A94,Kode!A2:D21,4,FALSE)","v":{"$error":"#N/A"}},null,null,null,null,null,null,null,null,null,null,null,null,null,{"$f":"VLOOKUP(A94,Kode!A2:E21,5,FALSE)","v":{"$error":"#N/A"}},null,null,null,null,null,{"$error":"#DIV/0!"}]
[null,{"$f":"VLOOKUP(A95,Kode!A2:C21,3,FALSE)","v":{"$error":"#N/A"}},{"$f":"VLOOKUP(A95,Kode!A2:B21,2,FALSE)","v":{"$error":"#N/A"}},{"$f":"VLOOKUP(A95,Kode!A2:D21,4,FALSE)","v":{"$error":"#N/A"}},null,null,null,null,null,null,null,null,null,null,null,null,null,{"$f":"VLOOKUP(A95,Kode!A2:E21,5,FALSE)","v":{"$error":"#N/A"}},null,null,null,null,null,{"$error":"#DIV/0!"}]
[null,{"$f":"VLOOKUP(A96,Kode!A2:C21,3,FALSE)","v":{"$error":"#N/A"}},{"$f":"VLOOKUP(A96,Kode!A2:B21,2,FALSE)","v":{"$error":"#N/A"}},{"$f":"VLOOKUP(A96,Kode!A2:D21,4,FALSE)","v":{"$error":"#N/A"}},null,null,null,null,null,null,null,null,null,null,null,null,null,{"$f":"VLOOKUP(A96,Kode!A2:E21,5,FALSE)","v":{"$error":"#N/A"}},null,null,null,null,null,{"$error":"#DIV/0!"}]
[null,{"$f":"VLOOKUP(A97,Kode!A2:C21,3,FALSE)","v":{"$error":"#N/A"}},{"$f":"VLOOKUP(A97,Kode!A2:B21,2,FALSE)","v":{"$error":"#N/A"}},{"$f":"VLOOKUP(A97,Kode!A2:D21,4,FALSE)","v":{"$error":"#N/A"}},null,null,null,null,null,null,null,null,null,null,null,null,null,{"$f":"VLOOKUP(A97,Kode!A2:E21,5,FALSE)","v":{"$error":"#N/A"}},null,null,null,null,null,{"$error":"#DIV/0!"}]
[null,{"$f":"VLOOKUP(A98,Kode!A2:C21,3,FALSE)","v":{"$error":"#N/A"}},{"$f":"VLOOKUP(A98,Kode!A2:B21,2,FALSE)","v":{"$error":"#N/A"}},{"$f":"VLOOKUP(A98,Kode!A2:D21,4,FALSE)","v":{"$error":"#N/A"}},null,null,null,null,null,null,null,null,null,null,null,null,null,{"$f":"VLOOKUP(A98,Kode!A2:E21,5,FALSE)","v":{"$error":"#N/A"}},null,null,null,null,null,{"$error":"#DIV/0!"}]
[null,{"$f":"VLOOKUP(A99,Kode!A2:C21,3,FALSE)","v":{"$error":"#N/A"}},{"$f":"VLOOKUP(A99,Kode!A2:B21,2,FALSE)","v":{"$error":"#N/A"}},{"$f":"VLOOKUP(A99,Kode!A2:D21,4,FALSE)","v":{"$error":"#N/A"}},null,null,null,null,null,null,null,null,null,null,null,null,null,{"$f":"VLOOKUP(A99,Kode!A2:E21,5,FALSE)","v":{"$error":"#N/A"}},null,null,null,null,null,{"$error":"#DIV/0!"}]
[null,{"$f":"VLOOKUP(A100,Kode!A2:C21,3,FALSE)","v":{"$error":"#N/A"}},{"$f":"VLOOKUP(A100,Kode!A2:B21,2,FALSE)","v":{"$error":"#N/A"}},{"$f":"VLOOKUP(A100,Kode!A2:D21,4,FALSE)","v":{"$error":"#N/A"}},null,null,null,null,null,null,null,null,null,null,null,null,null,{"$f":"VLOOKUP(A100,Kode!A2:E21,5,FALSE)","v":{"$error":"#N/A"}},null,null,null,null,null,{"$error":"#DIV/0!"}]
[null,{"$f":"VLOOKUP(A101,Kode!A2:C21,3,FALSE)","v":{"$error":"#N/A"}},{"$f":"VLOOKUP(A101,Kode!A2:B21,2,FALSE)","v":{"$error":"#N/A"}},{"$f":"VLOOKUP(A101,Kode!A2:D21,4,FALSE)","v":{"$error":"#N/A"}},null,null,null,null,null,null,null,null,null,null,null,null,null,{"$f":"VLOOKUP(A101,Kode!A2:E21,5,FALSE)","v":{"$error":"#N/A"}},null,null,null,null,null,{"$error":"#DIV/0!"}]
[null,{"$f":"VLOOKUP(A102,Kode!A2:C21,3,FALSE)","v":{"$error":"#N/A"}},{"$f":"VLOOKUP(A102,Kode!A2:B21,2,FALSE)","v":{"$error":"#N/A"}},{"$f":"VLOOKUP(A102,Kode!A2:D21,4,FALSE)","v":{"$error":"#N/A"}},null,null,null,null,null,null,null,null,null,null,null,null,null,{"$f":"VLOOKUP(A102,Kode!A2:E21,5,FALSE)","v":{"$error":"#N/A"}},null,null,null,null,null,{"$error":"#DIV/0!"}]
[null,{"$f":"VLOOKUP(A103,Kode!A2:C21,3,FALSE)","v":{"$error":"#N/A"}},{"$f":"VLOOKUP(A103,Kode!A2:B21,2,FALSE)","v":{"$error":"#N/A"}},{"$f":"VLOOKUP(A103,Kode!A2:D21,4,FALSE)","v":{"$error":"#N/A"}},null,null,null,null,null,null,null,null,null,null,null,null,null,{"$f":"VLOOKUP(A103,Kode!A2:E21,5,FALSE)","v":{"$error":"#N/A"}},null,null,null,null,null,{"$error":"#DIV/0!"}]
[null,{"$f":"VLOOKUP(A104,Kode!A2:C21,3,FALSE)","v":{"$error":"#N/A"}},{"$f":"VLOOKUP(A104,Kode!A2:B21,2,FALSE)","v":{"$error":"#N/A"}},{"$f":"VLOOKUP(A104,Kode!A2:D21,4,FALSE)","v":{"$error":"#N/A"}},null,null,null,null,null,null,null,null,null,null,null,null,null,{"$f":"VLOOKUP(A104,Kode!A2:E21,5,FALSE)","v":{"$error":"#N/A"}},null,null,null,null,null,{"$error":"#DIV/0!"}]
[null,{"$f":"VLOOKUP(A105,Kode!A2:C21,3,FALSE)","v":{"$error":"#N/A"}},{"$f":"VLOOKUP(A105,Kode!A2:B21,2,FALSE)","v":{"$error":"#N/A"}},{"$f":"VLOOKUP(A105,Kode!A2:D21,4,FALSE)","v":{"$error":"#N/A"}},null,null,null,null,null,null,null,null,null,null,null,null,null,{"$f":"VLOOKUP(A105,Kode!A2:E21,5,FALSE)","v":{"$error":"#N/A"}},null,null,null,null,null,{"$error":"#DIV/0!"}]
[null,{"$f":"VLOOKUP(A106,Kode!A2:C21,3,FALSE)","v":{"$error":"#N/A"}},{"$f":"VLOOKUP(A106,Kode!A2:B21,2,FALSE)","v":{"$error":"#N/A"}},{"$f":"VLOOKUP(A106,Kode!A2:D21,4,FALSE)","v":{"$error":"#N/A"}},null,null,null,null,null,null,null,null,null,null,null,null,null,{"$f":"VLOOKUP(A106,Kode!A2:E21,5,FALSE)","v":{"$error":"#N/A"}},null,null,null,null,null,{"$error":"#DIV/0!"}]
[null,{"$f":"VLOOKUP(A107,Kode!A2:C21,3,FALSE)","v":{"$error":"#N/A"}},{"$f":"VLOOKUP(A107,Kode!A2:B21,2,FALSE)","v":{"$error":"#N/A"}},{"$f":"VLOOKUP(A107,Kode!A2:D21,4,FALSE)","v":{"$error":"#N/A"}},null,null,null,null,null,null,null,null,null,null,null,null,null,{"$f":"VLOOKUP(A107,Kode!A2:E21,5,FALSE)","v":{"$error":"#N/A"}},null,null,null,null,null,{"$error":"#DIV/0!"}]
[null,{"$f":"VLOOKUP(A108,Kode!A2:C21,3,FALSE)","v":{"$error":"#N/A"}},{"$f":"VLOOKUP(A108,Kode!A2:B21,2,FALSE)","v":{"$error":"#N/A"}},{"$f":"VLOOKUP(A108,Kode!A2:D21,4,FALSE)","v":{"$error":"#N/A"}},null,null,null,null,null,null,null,null,null,null,null,null,null,{"$f":"VLOOKUP(A108,Kode!A2:E21,5,FALSE)","v":{"$error":"#N/A"}},null,null,null,null,null,{"$error":"#DIV/0!"}]
[null,{"$f":"VLOOKUP(A109,Kode!A2:C21,3,FALSE)","v":{"$error":"#N/A"}},{"$f":"VLOOKUP(A109,Kode!A2:B21,2,FALSE)","v":{"$error":"#N/A"}},{"$f":"VLOOKUP(A109,Kode!A2:D21,4,FALSE)","v":{"$error":"#N/A"}},null,null,null,null,null,null,null,null,null,null,null,null,null,{"$f":"VLOOKUP(A109,Kode!A2:E21,5,FALSE)","v":{"$error":"#N/A"}},null,null,null,null,null,{"$error":"#DIV/0!"}]
[null,{"$f":"VLOOKUP(A110,Kode!A2:C21,3,FALSE)","v":{"$error":"#N/A"}},{"$f":"VLOOKUP(A110,Kode!A2:B21,2,FALSE)","v":{"$error":"#N/A"}},{"$f":"VLOOKUP(A110,Kode!A2:D21,4,FALSE)","v":{"$error":"#N/A"}},null,null,null,null,null,null,null,null,null,null,null,null,null,{"$f":"VLOOKUP(A110,Kode!A2:E21,5,FALSE)","v":{"$error":"#N/A"}},null,null,null,null,null,{"$error":"#DIV/0!"}]
[null,{"$f":"VLOOKUP(A111,Kode!A2:C21,3,FALSE)","v":{"$error":"#N/A"}},{"$f":"VLOOKUP(A111,Kode!A2:B21,2,FALSE)","v":{"$error":"#N/A"}},{"$f":"VLOOKUP(A111,Kode!A2:D21,4,FALSE)","v":{"$error":"#N/A"}},null,null,null,null,null,null,null,null,null,null,null,null,null,{"$f":"VLOOKUP(A111,Kode!A2:E21,5,FALSE)","v":{"$error":"#N/A"}},null,null,null,null,null,{"$error":"#DIV/0!"}]
[null,{"$f":"VLOOKUP(A112,Kode!A2:C21,3,FALSE)","v":{"$error":"#N/A"}},{"$f":"VLOOKUP(A112,Kode!A2:B21,2,FALSE)","v":{"$error":"#N/A"}},{"$f":"VLOOKUP(A112,Kode!A2:D21,4,FALSE)","v":{"$error":"#N/A"}},null,null,null,null,null,null,null,null,null,null,null,null,null,{"$f":"VLOOKUP(A112,Kode!A2:E21,5,FALSE)","v":{"$error":"#N/A"}},null,null,null,null,null,{"$error":"#DIV/0!"}]
[null,{"$f":"VLOOKUP(A113,Kode!A2:C21,3,FALSE)","v":{"$error":"#N/A"}},{"$f":"VLOOKUP(A113,Kode!A2:B21,2,FALSE)","v":{"$error":"#N/A"}},{"$f":"VLOOKUP(A113,Kode!A2:D21,4,FALSE)","v":{"$error":"#N/A"}},null,null,null,null,null,null,null,null,null,null,null,null,null,{"$f":"VLOOKUP(A113,Kode!A2:E21,5,FALSE)","v":{"$error":"#N/A"}},null,null,null,null,null,{"$error":"#DIV/0!"}]
[null,{"$f":"VLOOKUP(A114,Kode!A2:C21,3,FALSE)","v":{"$error":"#N/A"}},{"$f":"VLOOKUP(A114,Kode!A2:B21,2,FALSE)","v":{"$error":"#N/A"}},{"$f":"VLOOKUP(A114,Kode!A2:D21,4,FALSE)","v":{"$error":"#N/A"}},null,null,null,null,null,null,null,null,null,null,null,null,null,{"$f":"VLOOKUP(A114,Kode!A2:E21,5,FALSE)","v":{"$error":"#N/A"}},null,null,null,null,null,{"$error":"#DIV/0!"}]
[null,{"$f":"VLOOKUP(A115,Kode!A2:C21,3,FALSE)","v":{"$error":"#N/A"}},{"$f":"VLOOKUP(A115,Kode!A2:B21,2,FALSE)","v":{"$error":"#N/A"}},{"$f":"VLOOKUP(A115,Kode!A2:D21,4,FALSE)","v":{"$error":"#N/A"}},null,null,null,null,null,null,null,null,null,null,null,null,null,{"$f":"VLOOKUP(A115,Kode!A2:E21,5,FALSE)","v":{"$error":"#N/A"}},null,null,null,null,null,{"$error":"#DIV/0!"}]
[null,{"$f":"VLOOKUP(A116,Kode!A2:C21,3,FALSE)","v":{"$error":"#N/A"}},{"$f":"VLOOKUP(A116,Kode!A2:B21,2,FALSE)","v":{"$error":"#N/A"}},{"$f":"VLOOKUP(A116,Kode!A2:D21,4,FALSE)","v":{"$error":"#N/A"}},null,null,null,null,null,null,null,null,null,null,null,null,null,{"$f":"VLOOKUP(A116,Kode!A2:E21,5,FALSE)","v":{"$error":"#N/A"}},null,null,null,null,null,{"$error":"#DIV/0!"}]
[null,{"$f":"VLOOKUP(A117,Kode!A2:C21,3,FALSE)","v":{"$error":"#N/A"}},{"$f":"VLOOKUP(A117,Kode!A2:B21,2,FALSE)","v":{"$error":"#N/A"}},{"$f":"VLOOKUP(A117,Kode!A2:D21,4,FALSE)","v":{"$error":"#N/A"}},null,null,null,null,null,null,null,null,null,null,null,null,null,{"$f":"VLOOKUP(A117,Kode!A2:E21,5,FALSE)","v":{"$error":"#N/A"}},null,null,null,null,null,{"$error":"#DIV/0!"}]
[null,{"$f":"VLOOKUP(A118,Kode!A2:C21,3,FALSE)","v":{"$error":"#N/A"}},{"$f":"VLOOKUP(A118,Kode!A2:B21,2,FALSE)","v":{"$error":"#N/A"}},{"$f":"VLOOKUP(A118,Kode!A2:D21,4,FALSE)","v":{"$error":"#N/A"}},null,null,null,null,null,null,null,null,null,null,null,null,null,{"$f":"VLOOKUP(A118,Kode!A2:E21,5,FALSE)","v":{"$error":"#N/A"}},null,null,null,null,null,{"$error":"#DIV/0!"}]
[null,{"$f":"VLOOKUP(A119,Kode!A2:C21,3,FALSE)","v":{"$error":"#N/A"}},{"$f":"VLOOKUP(A119,Kode!A2:B21,2,FALSE)","v":{"$error":"#N/A"}},{"$f":"VLOOKUP(A119,Kode!A2:D21,4,FALSE)","v":{"$error":"#N/A"}},null,null,null,null,null,null,null,null,null,null,null,null,null,{"$f":"VLOOKUP(A119,Kode!A2:E21,5,FALSE)","v":{"$error":"#N/A"}},null,null,null,null,null,{"$error":"#DIV/0!"}]
[null,{"$f":"VLOOKUP(A120,Kode!A2:C21,3,FALSE)","v":{"$error":"#N/A"}},{"$f":"VLOOKUP(A120,Kode!A2:B21,2,FALSE)","v":{"$error":"#N/A"}},{"$f":"VLOOKUP(A120,Kode!A2:D21,4,FALSE)","v":{"$error":"#N/A"}},null,null,null,null,null,null,null,null,null,null,null,null,null,{"$f":"VLOOKUP(A120,Kode!A2:E21,5,FALSE)","v":{"$error":"#N/A"}},null,null,null,null,null,{"$error":"#DIV/0!"}]
[null,{"$f":"VLOOKUP(A121,Kode!A2:C21,3,FALSE)","v":{"$error":"#N/A"}},{"$f":"VLOOKUP(A121,Kode!A2:B21,2,FALSE)","v":{"$error":"#N/A"}},{"$f":"VLOOKUP(A121,Kode!A2:D21,4,FALSE)","v":{"$error":"#N/A"}},null,null,null,null,null,null,null,null,null,null,null,null,null,{"$f":"VLOOKUP(A121,Kode!A2:E21,5,FALSE)","v":{"$error":"#N/A"}},null,null,null,null,null,{"$error":"#DIV/0!"}]
[null,{"$f":"VLOOKUP(A122,Kode!A2:C21,3,FALSE)","v":{"$error":"#N/A"}},{"$f":"VLOOKUP(A122,Kode!A2:B21,2,FALSE)","v":{"$error":"#N/A"}},{"$f":"VLOOKUP(A122,Kode!A2:D21,4,FALSE)","v":{"$error":"#N/A"}},null,null,null,null,null,null,null,null,null,null,null,null,null,{"$f":"VLOOKUP(A122,Kode!A2:E21,5,FALSE)","v":{"$error":"#N/A"}},null,null,null,null,null,{"$error":"#DIV/0!"}]
[null,{"$f":"VLOOKUP(A123,Kode!A2:C21,3,FALSE)","v":{"$error":"#N/A"}},{"$f":"VLOOKUP(A123,Kode!A2:B21,2,FALSE)","v":{"$error":"#N/A"}},{"$f":"VLOOKUP(A123,Kode!A2:D21,4,FALSE)","v":{"$error":"#N/A"}},null,null,null,null,null,null,null,null,null,null,null,null,null,{"$f":"VLOOKUP(A123,Kode!A2:E21,5,FALSE)","v":{"$error":"#N/A"}},null,null,null,null,null,{"$error":"#DIV/0!"}]
[null,{"$f":"VLOOKUP(A124,Kode!A2:C21,3,FALSE)","v":{"$error":"#N/A"}},{"$f":"VLOOKUP(A124,Kode!A2:B21,2,FALSE)","v":{"$error":"#N/A"}},{"$f":"VLOOKUP(A124,Kode!A2:D21,4,FALSE)","v":{"$error":"#N/A"}},null,null,null,null,null,null,null,null,null,null,null,null,null,{"$f":"VLOOKUP(A124,Kode!A2:E21,5,FALSE)","v":{"$error":"#N/A"}},null,null,null,null,null,{"$error":"#DIV/0!"}]
[null,{"$f":"VLOOKUP(A125,Kode!A2:C21,3,FALSE)","v":{"$error":"#N/A"}},{"$f":"VLOOKUP(A125,Kode!A2:B21,2,FALSE)","v":{"$error":"#N/A"}},{"$f":"VLOOKUP(A125,Kode!A2:D21,4,FALSE)","v":{"$error":"#N/A"}},null,null,null,null,null,null,null,null,null,null,null,null,null,{"$f":"VLOOKUP(A125,Kode!A2:E21,5,FALSE)","v":{"$error":"#N/A"}},null,null,null,null,null,{"$error":"#DIV/0!"}]
[null,{"$f":"VLOOKUP(A126,Kode!A2:C21,3,FALSE)","v":{"$error":"#N/A"}},{"$f":"VLOOKUP(A126,Kode!A2:B21,2,FALSE)","v":{"$error":"#N/A"}},{"$f":"VLOOKUP(A126,Kode!A2:D21,4,FALSE)","v":{"$error":"#N/A"}},null,null,null,null,null,null,null,null,null,null,null,null,null,{"$f":"VLOOKUP(A126,Kode!A2:E21,5,FALSE)","v":{"$error":"#N/A"}},null,null,null,null,null,{"$error":"#DIV/0!"}]
[null,{"$f":"VLOOKUP(A127,Kode!A2:C21,3,FALSE)","v":{"$error":"#N/A"}},{"$f":"VLOOKUP(A127,Kode!A2:B21,2,FALSE)","v":{"$error":"#N/A"}},{"$f":"VLOOKUP(A127,Kode!A2:D21,4,FALSE)","v":{"$error":"#N/A"}},null,null,null,null,null,null,null,null,null,null,null,null,null,{"$f":"VLOOKUP(A127,Kode!A2:E21,5,FALSE)","v":{"$error":"#N/A"}},null,null,null,null,null,{"$error":"#DIV/0!"}]
[null,{"$f":"VLOOKUP(A128,Kode!A2:C21,3,FALSE)","v":{"$error":"#N/A"}},{"$f":"VLOOKUP(A128,Kode!A2:B21,2,FALSE)","v":{"$error":"#N/A"}},{"$f":"VLOOKUP(A128,Kode!A2:D21,4,FALSE)","v":{"$error":"#N/A"}},null,null,null,null,null,null,null,null,null,null,null,null,null,{"$f":"VLOOKUP(A128,Kode!A2:E21,5,FALSE)","v":{"$error":"#N/A"}},null,null,null,null,null,{"$error":"#DIV/0!"}]
[null,{"$f":"VLOOKUP(A129,Kode!A2:C21,3,FALSE)","v":{"$error":"#N/A"}},{"$f":"VLOOKUP(A129,Kode!A2:B21,2,FALSE)","v":{"$error":"#N/A"}},{"$f":"VLOOKUP(A129,Kode!A2:D21,4,FALSE)","v":{"$error":"#N/A"}},null,null,null,null,null,null,null,null,null,null,null,null,null,{"$f":"VLOOKUP(A129,Kode!A2:E21,5,FALSE)","v":{"$error":"#N/A"}},null,null,null,null,null,{"$error":"#DIV/0!"}]
[null,{"$f":"VLOOKUP(A130,Kode!A2:C21,3,FALSE)","v":{"$error":"#N/A"}},{"$f":"VLOOKUP(A130,Kode!A2:B21,2,FALSE)","v":{"$error":"#N/A"}},{"$f":"VLOOKUP(A130,Kode!A2:D21,4,FALSE)","v":{"$error":"#N/A"}},null,null,null,null,null,null,null,null,null,null,null,null,null,{"$f":"VLOOKUP(A130,Kode!A2:E21,5,FALSE)","v":{"$error":"#N/A"}},null,null,null,null,null,{"$error":"#DIV/0!"}]
[null,{"$f":"VLOOKUP(A131,Kode!A2:C21,3,FALSE)","v":{"$error":"#N/A"}},{"$f":"VLOOKUP(A131,Kode!A2:B21,2,FALSE)","v":{"$error":"#N/A"}},{"$f":"VLOOKUP(A131,Kode!A2:D21,4,FALSE)","v":{"$error":"#N/A"}},null,null,null,null,null,null,null,null,null,null,null,null,null,{"$f":"VLOOKUP(A131,Kode!A2:E21,5,FALSE)","v":{"$error":"#N/A"}},null,null,null,null,null,{"$f":"V131/T131*100","v":{"$error":"#DIV/0!"}}]
[null,{"$f":"VLOOKUP(A132,Kode!A2:C21,3,FALSE)","v":{"$error":"#N/A"}},{"$f":"VLOOKUP(A132,Kode!A2:B21,2,FALSE)","v":{"$error":"#N/A"}},{"$f":"VLOOKUP(A132,Kode!A2:D21,4,FALSE)","v":{"$error":"#N/A"}},null,null,null,null,null,null,null,null,null,null,null,null,null,{"$f":"VLOOKUP(A132,Kode!A2:E21,5,FALSE)","v":{"$error":"#N/A"}},null,null,null,null,null,{"$error":"#DIV/0!"}]
[null,{"$f":"VLOOKUP(A133,Kode!A2:C21,3,FALSE)","v":{"$error":"#N/A"}},{"$f":"VLOOKUP(A133,Kode!A2:B21,2,FALSE)","v":{"$error":"#N/A"}},{"$f":"VLOOKUP(A133,Kode!A2:D21,4,FALSE)","v":{"$error":"#N/A"}},null,null,null,null,null,null,null,null,null,null,null,null,null,{"$f":"VLOOKUP(A133,Kode!A2:E21,5,FALSE)","v":{"$error":"#N/A"}},null,null,null,null,null,{"$error":"#DIV/0!"}]
[null,{"$f":"VLOOKUP(A134,Kode!A2:C21,3,FALSE)","v":{"$error":"#N/A"}},{"$f":"VLOOKUP(A134,Kode!A2:B21,2,FALSE)","v":{"$error":"#N/A"}},{"$f":"VLOOKUP(A134,Kode!A2:D21,4,FALSE)","v":{"$error":"#N/A"}},null,null,null,null,null,null,null,null,null,null,null,null,null,{"$f":"VLOOKUP(A134,Kode!A2:E21,5,FALSE)","v":{"$error":"#N/A"}},null,null,null,null,null,{"$error":"#DIV/0!"}]
[null,{"$f":"VLOOKUP(A135,Kode!A2:C21,3,FALSE)","v":{"$error":"#N/A"}},{"$f":"VLOOKUP(A135,Kode!A2:B21,2,FALSE)","v":{"$error":"#N/A"}},{"$f":"VLOOKUP(A135,Kode!A2:D21,4,FALSE)","v":{"$error":"#N/A"}},null,null,null,null,null,null,null,null,null,null,null,null,null,{"$f":"VLOOKUP(A135,Kode!A2:E21,5,FALSE)","v":{"$error":"#N/A"}},null,null,null,null,null,{"$error":"#DIV/0!"}]
[null,{"$f":"VLOOKUP(A136,Kode!A2:C21,3,FALSE)","v":{"$error":"#N/A"}},{"$f":"VLOOKUP(A136,Kode!A2:B21,2,FALSE)","v":{"$error":"#N/A"}},{"$f":"VLOOKUP(A136,Kode!A2:D21,4,FALSE)","v":{"$error":"#N/A"}},null,null,null,null,null,null,null,null,null,null,null,null,null,{"$f":"VLOOKUP(A136,Kode!A2:E21,5,FALSE)","v":{"$error":"#N/A"}},null,null,null,null,null,{"$error":"#DIV/0!"}]
[null,{"$f":"VLOOKUP(A137,Kode!A2:C21,3,FALSE)","v":{"$error":"#N/A"}},{"$f":"VLOOKUP(A137,Kode!A2:B21,2,FALSE)","v":{"$error":"#N/A"}},{"$f":"VLOOKUP(A137,Kode!A2:D21,4,FALSE)","v":{"$error":"#N/A"}},null,null,null,null,null,null,null,null,null,null,null,null,null,{"$f":"VLOOKUP(A137,Kode!A2:E21,5,FALSE)","v":{"$error":"#N/A"}},null,null,null,null,null,{"$error":"#DIV/0!"}]
[null,{"$f":"VLOOKUP(A138,Kode!A2:C21,3,FALSE)","v":{"$error":"#N/A"}},{"$f":"VLOOKUP(A138,Kode!A2:B21,2,FALSE)","v":{"$error":"#N/A"}},{"$f":"VLOOKUP(A138,Kode!A2:D21,4,FALSE)","v":{"$error":"#N/A"}},null,null,null,null,null,null,null,null,null,null,null,null,null,{"$f":"VLOOKUP(A138,Kode!A2:E21,5,FALSE)","v":{"$error":"#N/A"}},null,null,null,null,null,{"$error":"#DIV/0!"}]
[null,{"$f":"VLOOKUP(A139,Kode!A2:C21,3,FALSE)","v":{"$error":"#N/A"}},{"$f":"VLOOKUP(A139,Kode!A2:B21,2,FALSE)","v":{"$error":"#N/A"}},{"$f":"VLOOKUP(A139,Kode!A2:D21,4,FALSE)","v":{"$error":"#N/A"}},null,null,null,null,null,null,null,null,null,null,null,null,null,{"$f":"VLOOKUP(A139,Kode!A2:E21,5,FALSE)","v":{"$error":"#N/A"}},null,null,null,null,null,{"$error":"#DIV/0!"}]
[null,{"$f":"VLOOKUP(A140,Kode!A2:C21,3,FALSE)","v":{"$error":"#N/A"}},{"$f":"VLOOKUP(A140,Kode!A2:B21,2,FALSE)","v":{"$error":"#N/A"}},{"$f":"VLOOKUP(A140,Kode!A2:D21,4,FALSE)","v":{"$error":"#N/A"}},null,null,null,null,null,null,null,null,null,null,null,null,null,{"$f":"VLOOKUP(A140,Kode!A2:E21,5,FALSE)","v":{"$error":"#N/A"}},null,null,null,null,null,{"$error":"#DIV/0!"}]
[null,{"$f":"VLOOKUP(A141,Kode!A2:C21,3,FALSE)","v":{"$error":"#N/A"}},{"$f":"VLOOKUP(A141,Kode!A2:B21,2,FALSE)","v":{"$error":"#N/A"}},{"$f":"VLOOKUP(A141,Kode!A2:D21,4,FALSE)","v":{"$error":"#N/A"}},null,null,null,null,null,null,null,null,null,null,null,null,null,{"$f":"VLOOKUP(A141,Kode!A2:E21,5,FALSE)","v":{"$error":"#N/A"}},null,null,null,null,null,{"$error":"#DIV/0!"}]
[null,{"$f":"VLOOKUP(A142,Kode!A2:C21,3,FALSE)","v":{"$error":"#N/A"}},{"$f":"VLOOKUP(A142,Kode!A2:B21,2,FALSE)","v":{"$error":"#N/A"}},{"$f":"VLOOKUP(A142,Kode!A2:D21,4,FALSE)","v":{"$error":"#N/A"}},null,null,null,null,null,null,null,null,null,null,null,null,null,{"$f":"VLOOKUP(A142,Kode!A2:E21,5,FALSE)","v":{"$error":"#N/A"}},null,null,null,null,null,{"$error":"#DIV/0!"}]
[null,{"$f":"VLOOKUP(A143,Kode!A2:C21,3,FALSE)","v":{"$error":"#N/A"}},{"$f":"VLOOKUP(A143,Kode!A2:B21,2,FALSE)","v":{"$error":"#N/A"}},{"$f":"VLOOKUP(A143,Kode!A2:D21,4,FALSE)","v":{"$error":"#N/A"}},null,null,null,null,null,null,null,null,null,null,null,null,null,{"$f":"VLOOKUP(A143,Kode!A2:E21,5,FALSE)","v":{"$error":"#N/A"}},null,null,null,null,null,{"$error":"#DIV/0!"}]
[null,{"$f":"VLOOKUP(A144,Kode!A2:C21,3,FALSE)","v":{"$error":"#N/A"}},{"$f":"VLOOKUP(A144,Kode!A2:B21,2,FALSE)","v":{"$error":"#N/A"}},{"$f":"VLOOKUP(A144,Kode!A2:D21,4,FALSE)","v":{"$error":"#N/A"}},null,null,null,null,null,null,null,null,null,null,null,null,null,{"$f":"VLOOKUP(A144,Kode!A2:E21,5,FALSE)","v":{"$error":"#N/A"}},null,null,null,null,null,{"$error":"#DIV/0!"}]
[null,{"$f":"VLOOKUP(A145,Kode!A2:C21,3,FALSE)","v":{"$error":"#N/A"}},{"$f":"VLOOKUP(A145,Kode!A2:B21,2,FALSE)","v":{"$error":"#N/A"}},{"$f":"VLOOKUP(A145,Kode!A2:D21,4,FALSE)","v":{"$error":"#N/A"}},null,null,null,null,null,null,null,null,null,null,null,null,null,{"$f":"VLOOKUP(A145,Kode!A2:E21,5,FALSE)","v":{"$error":"#N/A"}},null,null,null,null,null,{"$error":"#DIV/0!"}]
[null,{"$f":"VLOOKUP(A146,Kode!A2:C21,3,FALSE)","v":{"$error":"#N/A"}},{"$f":"VLOOKUP(A146,Kode!A2:B21,2,FALSE)","v":{"$error":"#N/A"}},{"$f":"VLOOKUP(A146,Kode!A2:D21,4,FALSE)","v":{"$error":"#N/A"}},null,null,null,null,null,null,null,null,null,null,null,null,null,{"$f":"VLOOKUP(A146,Kode!A2:E21,5,FALSE)","v":{"$error":"#N/A"}},null,null,null,null,null,{"$error":"#DIV/0!"}]
[null,{"$f":"VLOOKUP(A147,Kode!A2:C21,3,FALSE)","v":{"$error":"#N/A"}},{"$f":"VLOOKUP(A147,Kode!A2:B21,2,FALSE)","v":{"$error":"#N/A"}},{"$f":"VLOOKUP(A147,Kode!A2:D21,4,FALSE)","v":{"$error":"#N/A"}},null,null,null,null,null,null,null,null,null,null,null,null,null,{"$f":"VLOOKUP(A147,Kode!A2:E21,5,FALSE)","v":{"$error":"#N/A"}},null,null,null,null,null,{"$error":"#DIV/0!"}]
[null,{"$f":"VLOOKUP(A148,Kode!A2:C21,3,FALSE)","v":{"$error":"#N/A"}},{"$f":"VLOOKUP(A148,Kode!A2:B21,2,FALSE)","v":{"$error":"#N/A"}},{"$f":"VLOOKUP(A148,Kode!A2:D21,4,FALSE)","v":{"$error":"#N/A"}},null,null,null,null,null,null,null,null,null,null,null,null,null,{"$f":"VLOOKUP(A148,Kode!A2:E21,5,FALSE)","v":{"$error":"#N/A"}},null,null,null,null,null,{"$error":"#DIV/0!"}]
[null,{"$f":"VLOOKUP(A149,Kode!A2:C21,3,FALSE)","v":{"$error":"#N/A"}},{"$f":"VLOOKUP(A149,Kode!A2:B21,2,FALSE)","v":{"$error":"#N/A"}},{"$f":"VLOOKUP(A149,Kode!A2:D21,4,FALSE)","v":{"$error":"#N/A"}},null,null,null,null,null,null,null,null,null,null,null,null,null,{"$f":"VLOOKUP(A149,Kode!A2:E21,5,FALSE)","v":{"$error":"#N/A"}},null,null,null,null,null,{"$error":"#DIV/0!"}]
[null,{"$f":"VLOOKUP(A150,Kode!A2:C21,3,FALSE)","v":{"$error":"#N/A"}},{"$f":"VLOOKUP(A150,Kode!A2:B21,2,FALSE)","v":{"$error":"#N/A"}},{"$f":"VLOOKUP(A150,Kode!A2:D21,4,FALSE)","v":{"$error":"#N/A"}},null,null,null,null,null,null,null,null,null,null,null,null,null,{"$f":"VLOOKUP(A150,Kode!A2:E21,5,FALSE)","v":{"$error":"#N/A"}},null,null,null,null,null,{"$error":"#DIV/0!"}]
[null,{"$f":"VLOOKUP(A151,Kode!A2:C21,3,FALSE)","v":{"$error":"#N/A"}},{"$f":"VLOOKUP(A151,Kode!A2:B21,2,FALSE)","v":{"$error":"#N/A"}},{"$f":"VLOOKUP(A151,Kode!A2:D21,4,FALSE)","v":{"$error":"#N/A"}},null,null,null,null,null,null,null,null,null,null,null,null,null,{"$f":"VLOOKUP(A151,Kode!A2:E21,5,FALSE)","v":{"$error":"#N/A"}},null,null,null,null,null,{"$error":"#DIV/0!"}]
[null,{"$f":"VLOOKUP(A152,Kode!A2:C21,3,FALSE)","v":{"$error":"#N/A"}},{"$f":"VLOOKUP(A152,Kode!A2:B21,2,FALSE)","v":{"$error":"#N/A"}},{"$f":"VLOOKUP(A152,Kode!A2:D21,4,FALSE)","v":{"$error":"#N/A"}},null,null,null,null,null,null,null,null,null,null,null,null,null,{"$f":"VLOOKUP(A152,Kode!A2:E21,5,FALSE)","v":{"$error":"#N/A"}},null,null,null,null,null,{"$error":"#DIV/0!"}]
[null,{"$f":"VLOOKUP(A153,Kode!A2:C21,3,FALSE)","v":{"$error":"#N/A"}},{"$f":"VLOOKUP(A153,Kode!A2:B21,2,FALSE)","v":{"$error":"#N/A"}},{"$f":"VLOOKUP(A153,Kode!A2:D21,4,FALSE)","v":{"$error":"#N/A"}},null,null,null,null,null,null,null,null,null,null,null,null,null,{"$f":"VLOOKUP(A153,Kode!A2:E21,5,FALSE)","v":{"$error":"#N/A"}},null,null,null,null,null,{"$error":"#DIV/0!"}]
[null,{"$f":"VLOOKUP(A154,Kode!A2:C21,3,FALSE)","v":{"$error":"#N/A"}},{"$f":"VLOOKUP(A154,Kode!A2:B21,2,FALSE)","v":{"$error":"#N/A"}},{"$f":"VLOOKUP(A154,Kode!A2:D21,4,FALSE)","v":{"$error":"#N/A"}},null,null,null,null,null,null,null,null,null,null,null,null,null,{"$f":"VLOOKUP(A154,Kode!A2:E21,5,FALSE)","v":{"$error":"#N/A"}},null,null,null,null,null,{"$error":"#DIV/0!"}]
[null,{"$f":"VLOOKUP(A155,Kode!A2:C21,3,FALSE)","v":{"$error":"#N/A"}},{"$f":"VLOOKUP(A155,Kode!A2:B21,2,FALSE)","v":{"$error":"#N/A"}},{"$f":"VLOOKUP(A155,Kode!A2:D21,4,FALSE)","v":{"$error":"#N/A"}},null,null,null,null,null,null,null,null,null,null,null,null,null,{"$f":"VLOOKUP(A155,Kode!A2:E21,5,FALSE)","v":{"$error":"#N/A"}},null,null,null,null,null,{"$error":"#DIV/0!"}]
[null,{"$f":"VLOOKUP(A156,Kode!A2:C21,3,FALSE)","v":{"$error":"#N/A"}},{"$f":"VLOOKUP(A156,Kode!A2:B21,2,FALSE)","v":{"$error":"#N/A"}},{"$f":"VLOOKUP(A156,Kode!A2:D21,4,FALSE)","v":{"$error":"#N/A"}},null,null,null,null,null,null,null,null,null,null,null,null,null,{"$f":"VLOOKUP(A156,Kode!A2:E21,5,FALSE)","v":{"$error":"#N/A"}},null,null,null,null,null,{"$error":"#DIV/0!"}]
[null,{"$f":"VLOOKUP(A157,Kode!A2:C21,3,FALSE)","v":{"$error":"#N/A"}},{"$f":"VLOOKUP(A157,Kode!A2:B21,2,FALSE)","v":{"$error":"#N/A"}},{"$f":"VLOOKUP(A157,Kode!A2:D21,4,FALSE)","v":{"$error":"#N/A"}},null,null,null,null,null,null,null,null,null,null,null,null,null,{"$f":"VLOOKUP(A157,Kode!A2:E21,5,FALSE)","v":{"$error":"#N/A"}},null,null,null,null,null,{"$error":"#DIV/0!"}]
[null,{"$f":"VLOOKUP(A158,Kode!A2:C21,3,FALSE)","v":{"$error":"#N/A"}},{"$f":"VLOOKUP(A158,Kode!A2:B21,2,FALSE)","v":{"$error":"#N/A"}},{"$f":"VLOOKUP(A158,Kode!A2:D21,4,FALSE)","v":{"$error":"#N/A"}},null,null,null,null,null,null,null,null,null,null,null,null,null,{"$f":"VLOOKUP(A158,Kode!A2:E21,5,FALSE)","v":{"$error":"#N/A"}},null,null,null,null,null,{"$error":"#DIV/0!"}]
[null,{"$f":"VLOOKUP(A159,Kode!A2:C21,3,FALSE)","v":{"$error":"#N/A"}},{"$f":"VLOOKUP(A159,Kode!A2:B21,2,FALSE)","v":{"$error":"#N/A"}},{"$f":"VLOOKUP(A159,Kode!A2:D21,4,FALSE)","v":{"$error":"#N/A"}},null,null,null,null,null,null,null,null,null,null,null,null,null,{"$f":"VLOOKUP(A159,Kode!A2:E21,5,FALSE)","v":{"$error":"#N/A"}},null,null,null,null,null,{"$error":"#DIV/0!"}]
[null,{"$f":"VLOOKUP(A160,Kode!A2:C21,3,FALSE)","v":{"$error":"#N/A"}},{"$f":"VLOOKUP(A160,Kode!A2:B21,2,FALSE)","v":{"$error":"#N/A"}},{"$f":"VLOOKUP(A160,Kode!A2:D21,4,FALSE)","v":{"$error":"#N/A"}},null,null,null,null,null,null,null,null,null,null,null,null,null,{"$f":"VLOOKUP(A160,Kode!A2:E21,5,FALSE)","v":{"$error":"#N/A"}},null,null,null,null,null,{"$error":"#DIV/0!"}]
[null,{"$f":"VLOOKUP(A161,Kode!A2:C21,3,FALSE)","v":{"$error":"#N/A"}},{"$f":"VLOOKUP(A161,Kode!A2:B21,2,FALSE)","v":{"$error":"#N/A"}},{"$f":"VLOOKUP(A161,Kode!A2:D21,4,FALSE)","v":{"$error":"#N/A"}},null,null,null,null,null,null,null,null,null,null,null,null,null,{"$f":"VLOOKUP(A161,Kode!A2:E21,5,FALSE)","v":{"$error":"#N/A"}},null,null,null,null,null,{"$error":"#DIV/0!"}]
[null,{"$f":"VLOOKUP(A162,Kode!A2:C21,3,FALSE)","v":{"$error":"#N/A"}},{"$f":"VLOOKUP(A162,Kode!A2:B21,2,FALSE)","v":{"$error":"#N/A"}},{"$f":"VLOOKUP(A162,Kode!A2:D21,4,FALSE)","v":{"$error":"#N/A"}},null,null,null,null,null,null,null,null,null,null,null,null,null,{"$f":"VLOOKUP(A162,Kode!A2:E21,5,FALSE)","v":{"$error":"#N/A"}},null,null,null,null,null,{"$error":"#DIV/0!"}]
[null,{"$f":"VLOOKUP(A163,Kode!A2:C21,3,FALSE)","v":{"$error":"#N/A"}},{"$f":"VLOOKUP(A163,Kode!A2:B21,2,FALSE)","v":{"$error":"#N/A"}},{"$f":"VLOOKUP(A163,Kode!A2:D21,4,FALSE)","v":{"$error":"#N/A"}},null,null,null,null,null,null,null,null,null,null,null,null,null,{"$f":"VLOOKUP(A163,Kode!A2:E21,5,FALSE)","v":{"$error":"#N/A"}},null,null,null,null,null,{"$error":"#DIV/0!"}]
[null,{"$f":"VLOOKUP(A164,Kode!A2:C21,3,FALSE)","v":{"$error":"#N/A"}},{"$f":"VLOOKUP(A164,Kode!A2:B21,2,FALSE)","v":{"$error":"#N/A"}},{"$f":"VLOOKUP(A164,Kode!A2:D21,4,FALSE)","v":{"$error":"#N/A"}},null,null,null,null,null,null,null,null,null,null,null,null,null,{"$f":"VLOOKUP(A164,Kode!A2:E21,5,FALSE)","v":{"$error":"#N/A"}},null,null,null,null,null,{"$error":"#DIV/0!"}]
[null,{"$f":"VLOOKUP(A165,Kode!A2:C21,3,FALSE)","v":{"$error":"#N/A"}},{"$f":"VLOOKUP(A165,Kode!A2:B21,2,FALSE)","v":{"$error":"#N/A"}},{"$f":"VLOOKUP(A165,Kode!A2:D21,4,FALSE)","v":{"$error":"#N/A"}},null,null,null,null,null,null,null,null,null,null,null,null,null,{"$f":"VLOOKUP(A165,Kode!A2:E21,5,FALSE)","v":{"$error":"#N/A"}},null,null,null,null,null,{"$error":"#DIV/0!"}]
[null,{"$f":"VLOOKUP(A166,Kode!A2:C21,3,FALSE)","v":{"$error":"#N/A"}},{"$f":"VLOOKUP(A166,Kode!A2:B21,2,FALSE)","v":{"$error":"#N/A"}},{"$f":"VLOOKUP(A166,Kode!A2:D21,4,FALSE)","v":{"$error":"#N/A"}},null,null,null,null,null,null,null,null,null,null,null,null,null,{"$f":"VLOOKUP(A166,Kode!A2:E21,5,FALSE)","v":{"$error":"#N/A"}},null,null,null,null,null,{"$error":"#DIV/0!"}]
[null,{"$f":"VLOOKUP(A167,Kode!A2:C21,3,FALSE)","v":{"$error":"#N/A"}},{"$f":"VLOOKUP(A167,Kode!A2:B21,2,FALSE)","v":{"$error":"#N/A"}},{"$f":"VLOOKUP(A167,Kode!A2:D21,4,FALSE)","v":{"$error":"#N/A"}},null,null,null,null,null,null,null,null,null,null,null,null,null,{"$f":"VLOOKUP(A167,Kode!A2:E21,5,FALSE)","v":{"$error":"#N/A"}},null,null,null,null,null,{"$error":"#DIV/0!"}]
[null,{"$f":"VLOOKUP(A168,Kode!A2:C21,3,FALSE)","v":{"$error":"#N/A"}},{"$f":"VLOOKUP(A168,Kode!A2:B21,2,FALSE)","v":{"$error":"#N/A"}},{"$f":"VLOOKUP(A168,Kode!A2:D21,4,FALSE)","v":{"$error":"#N/A"}},null,null,null,null,null,null,null,null,null,null,null,null,null,{"$f":"VLOOKUP(A168,Kode!A2:E21,5,FALSE)","v":{"$error":"#N/A"}},null,null,null,null,null,{"$error":"#DIV/0!"}]
[null,{"$f":"VLOOKUP(A169,Kode!A2:C21,3,FALSE)","v":{"$error":"#N/A"}},{"$f":"VLOOKUP(A169,Kode!A2:B21,2,FALSE)","v":{"$error":"#N/A"}},{"$f":"VLOOKUP(A169,Kode!A2:D21,4,FALSE)","v":{"$error":"#N/A"}},null,null,null,null,null,null,null,null,null,null,null,null,null,{"$f":"VLOOKUP(A169,Kode!A2:E21,5,FALSE)","v":{"$error":"#N/A"}},null,null,null,null,null,{"$error":"#DIV/0!"}]
[null,{"$f":"VLOOKUP(A170,Kode!A2:C21,3,FALSE)","v":{"$error":"#N/A"}},{"$f":"VLOOKUP(A170,Kode!A2:B21,2,FALSE)","v":{"$error":"#N/A"}},{"$f":"VLOOKUP(A170,Kode!A2:D21,4,FALSE)","v":{"$error":"#N/A"}},null,null,null,null,null,null,null,null,null,null,null,null,null,{"$f":"VLOOKUP(A170,Kode!A2:E21,5,FALSE)","v":{"$error":"#N/A"}},null,null,null,null,null,{"$error":"#DIV/0!"}]
[null,{"$f":"VLOOKUP(A171,Kode!A2:C21,3,FALSE)","v":{"$error":"#N/A"}},{"$f":"VLOOKUP(A171,Kode!A2:B21,2,FALSE)","v":{"$error":"#N/A"}},{"$f":"VLOOKUP(A171,Kode!A2:D21,4,FALSE)","v":{"$error":"#N/A"}},null,null,null,null,null,null,null,null,null,null,null,null,null,{"$f":"VLOOKUP(A171,Kode!A2:E21,5,FALSE)","v":{"$error":"#N/A"}},null,null,null,null,null,{"$error":"#DIV/0!"}]
[null,{"$f":"VLOOKUP(A172,Kode!A2:C21,3,FALSE)","v":{"$error":"#N/A"}},{"$f":"VLOOKUP(A172,Kode!A2:B21,2,FALSE)","v":{"$error":"#N/A"}},{"$f":"VLOOKUP(A172,Kode!A2:D21,4,FALSE)","v":{"$error":"#N/A"}},null,null,null,null,null,null,null,null,null,null,null,null,null,{"$f":"VLOOKUP(A172,Kode!A2:E21,5,FALSE)","v":{"$error":"#N/A"}},null,null,null,null,null,{"$error":"#DIV/0!"}]
[null,{"$f":"VLOOKUP(A173,Kode!A2:C21,3,FALSE)","v":{"$error":"#N/A"}},{"$f":"VLOOKUP(A173,Kode!A2:B21,2,FALSE)","v":{"$error":"#N/A"}},{"$f":"VLOOKUP(A173,Kode!A2:D21,4,FALSE)","v":{"$error":"#N/A"}},null,null,null,null,null,null,null,null,null,null,null,null,null,{"$f":"VLOOKUP(A173,Kode!A2:E21,5,FALSE)","v":{"$error":"#N/A"}},null,null,null,null,null,{"$error":"#DIV/0!"}]
[null,{"$f":"VLOOKUP(A174,Kode!A2:C21,3,FALSE)","v":{"$error":"#N/A"}},{"$f":"VLOOKUP(A174,Kode!A2:B21,2,FALSE)","v":{"$error":"#N/A"}},{"$f":"VLOOKUP(A174,Kode!A2:D21,4,FALSE)","v":{"$error":"#N/A"}},null,null,null,null,null,null,null,null,null,null,null,null,null,{"$f":"VLOOKUP(A174,Kode!A2:E21,5,FALSE)","v":{"$error":"#N/A"}},null,null,null,null,null,{"$error":"#DIV/0!"}]
[null,{"$f":"VLOOKUP(A175,Kode!A2:C21,3,FALSE)","v":{"$error":"#N/A"}},{"$f":"VLOOKUP(A175,Kode!A2:B21,2,FALSE)","v":{"$error":"#N/A"}},{"$f":"VLOOKUP(A175,Kode!A2:D21,4,FALSE)","v":{"$error":"#N/A"}},null,null,null,null,null,null,null,null,null,null,null,null,null,{"$f":"VLOOKUP(A175,Kode!A2:E21,5,FALSE)","v":{"$error":"#N/A"}},null,null,null,null,null,{"$error":"#DIV/0!"}]
[null,{"$f":"VLOOKUP(A176,Kode!A2:C21,3,FALSE)","v":{"$error":"#N/A"}},{"$f":"VLOOKUP(A176,Kode!A2:B21,2,FALSE)","v":{"$error":"#N/A"}},{"$f":"VLOOKUP(A176,Kode!A2:D21,4,FALSE)","v":{"$error":"#N/A"}},null,null,null,null,null,null,null,null,null,null,null,null,null,{"$f":"VLOOKUP(A176,Kode!A2:E21,5,FALSE)","v":{"$error":"#N/A"}},null,null,null,null,null,{"$error":"#DIV/0!"}]
[null,{"$f":"VLOOKUP(A177,Kode!A2:C21,3,FALSE)","v":{"$error":"#N/A"}},{"$f":"VLOOKUP(A177,Kode!A2:B21,2,FALSE)","v":{"$error":"#N/A"}},{"$f":"VLOOKUP(A177,Kode!A2:D21,4,FALSE)","v":{"$error":"#N/A"}},null,null,null,null,null,null,null,null,null,null,null,null,null,{"$f":"VLOOKUP(A177,Kode!A2:E21,5,FALSE)","v":{"$error":"#N/A"}},null,null,null,null,null,{"$error":"#DIV/0!"}]
[null,{"$f":"VLOOKUP(A178,Kode!A2:C21,3,FALSE)","v":{"$error":"#N/A"}},{"$f":"VLOOKUP(A178,Kode!A2:B21,2,FALSE)","v":{"$error":"#N/A"}},{"$f":"VLOOKUP(A178,Kode!A2:D21,4,FALSE)","v":{"$error":"#N/A"}},null,null,null,null,null,null,null,null,null,null,null,null,null,{"$f":"VLOOKUP(A178,Kode!A2:E21,5,FALSE)","v":{"$error":"#N/A"}},null,null,null,null,null,{"$error":"#DIV/0!"}]
[null,{"$f":"VLOOKUP(A179,Kode!A2:C21,3,FALSE)","v":{"$error":"#N/A"}},{"$f":"VLOOKUP(A179,Kode!A2:B21,2,FALSE)","v":{"$error":"#N/A"}},{"$f":"VLOOKUP(A179,Kode!A2:D21,4,FALSE)","v":{"$error":"#N/A"}},null,null,null,null,null,null,null,null,null,null,null,null,null,{"$f":"VLOOKUP(A179,Kode!A2:E21,5,FALSE)","v":{"$error":"#N/A"}},null,null,null,null,null,{"$error":"#DIV/0!"}]
[null,{"$f":"VLOOKUP(A180,Kode!A2:C21,3,FALSE)","v":{"$error":"#N/A"}},{"$f":"VLOOKUP(A180,Kode!A2:B21,2,FALSE)","v":{"$error":"#N/A"}},{"$f":"VLOOKUP(A180,Kode!A2:D21,4,FALSE)","v":{"$error":"#N/A"}},null,null,null,null,null,null,null,null,null,null,null,null,null,{"$f":"VLOOKUP(A180,Kode!A2:E21,5,FALSE)","v":{"$error":"#N/A"}},null,null,null,null,null,{"$error":"#DIV/0!"}]
[null,{"$f":"VLOOKUP(A181,Kode!A2:C21,3,FALSE)","v":{"$error":"#N/A"}},{"$f":"VLOOKUP(A181,Kode!A2:B21,2,FALSE)","v":{"$error":"#N/A"}},{"$f":"VLOOKUP(A181,Kode!A2:D21,4,FALSE)","v":{"$error":"#N/A"}},null,null,null,null,null,null,null,null,null,null,null,null,null,{"$f":"VLOOKUP(A181,Kode!A2:E21,5,FALSE)","v":{"$error":"#N/A"}},null,null,null,null,null,{"$error":"#DIV/0!"}]
[null,{"$f":"VLOOKUP(A182,Kode!A2:C21,3,FALSE)","v":{"$error":"#N/A"}},{"$f":"VLOOKUP(A182,Kode!A2:B21,2,FALSE)","v":{"$error":"#N/A"}},{"$f":"VLOOKUP(A182,Kode!A2:D21,4,FALSE)","v":{"$error":"#N/A"}},null,null,null,null,null,null,null,null,null,null,null,null,null,{"$f":"VLOOKUP(A182,Kode!A2:E21,5,FALSE)","v":{"$error":"#N/A"}},null,null,null,null,null,{"$error":"#DIV/0!"}]
[null,{"$f":"VLOOKUP(A183,Kode!A2:C21,3,FALSE)","v":{"$error":"#N/A"}},{"$f":"VLOOKUP(A183,Kode!A2:B21,2,FALSE)","v":{"$error":"#N/A"}},{"$f":"VLOOKUP(A183,Kode!A2:D21,4,FALSE)","v":{"$error":"#N/A"}},null,null,null,null,null,null,null,null,null,null,null,null,null,{"$f":"VLOOKUP(A183,Kode!A2:E21,5,FALSE)","v":{"$error":"#N/A"}},null,null,null,null,null,{"$error":"#DIV/0!"}]
[null,{"$f":"VLOOKUP(A184,Kode!A2:C21,3,FALSE)","v":{"$error":"#N/A"}},{"$f":"VLOOKUP(A184,Kode!A2:B21,2,FALSE)","v":{"$error":"#N/A"}},{"$f":"VLOOKUP(A184,Kode!A2:D21,4,FALSE)","v":{"$error":"#N/A"}},null,null,null,null,null,null,null,null,null,null,null,null,null,{"$f":"VLOOKUP(A184,Kode!A2:E21,5,FALSE)","v":{"$error":"#N/A"}},null,null,null,null,null,{"$error":"#DIV/0!"}]
[null,{"$f":"VLOOKUP(A185,Kode!A2:C21,3,FALSE)","v":{"$error":"#N/A"}},{"$f":"VLOOKUP(A185,Kode!A2:B21,2,FALSE)","v":{"$error":"#N/A"}},{"$f":"VLOOKUP(A185,Kode!A2:D21,4,FALSE)","v":{"$error":"#N/A"}},null,null,null,null,null,null,null,null,null,null,null,null,null,{"$f":"VLOOKUP(A185,Kode!A2:E21,5,FALSE)","v":{"$error":"#N/A"}},null,null,null,null,null,{"$error":"#DIV/0!"}]
[null,{"$f":"VLOOKUP(A186,Kode!A2:C21,3,FALSE)","v":{"$error":"#N/A"}},{"$f":"VLOOKUP(A186,Kode!A2:B21,2,FALSE)","v":{"$error":"#N/A"}},{"$f":"VLOOKUP(A186,Kode!A2:D21,4,FALSE)","v":{"$error":"#N/A"}},null,null,null,null,null,null,null,null,null,null,null,null,null,{"$f":"VLOOKUP(A186,Kode!A2:E21,5,FALSE)","v":{"$error":"#N/A"}},null,null,null,null,null,{"$error":"#DIV/0!"}]
[null,{"$f":"VLOOKUP(A187,Kode!A2:C21,3,FALSE)","v":{"$error":"#N/A"}},{"$f":"VLOOKUP(A187,Kode!A2:B21,2,FALSE)","v":{"$error":"#N/A"}},{"$f":"VLOOKUP(A187,Kode!A2:D21,4,FALSE)","v":{"$error":"#N/A"}},null,null,null,null,null,null,null,null,null,null,null,null,null,{"$f":"VLOOKUP(A187,Kode!A2:E21,5,FALSE)","v":{"$error":"#N/A"}},null,null,null,null,null,{"$error":"#DIV/0!"}]
[null,{"$f":"VLOOKUP(A188,Kode!A2:C21,3,FALSE)","v":{"$error":"#N/A"}},{"$f":"VLOOKUP(A188,Kode!A2:B21,2,FALSE)","v":{"$error":"#N/A"}},{"$f":"VLOOKUP(A188,Kode!A2:D21,4,FALSE)","v":{"$error":"#N/A"}},null,null,null,null,null,null,null,null,null,null,null,null,null,{"$f":"VLOOKUP(A188,Kode!A2:E21,5,FALSE)","v":{"$error":"#N/A"}},null,null,null,null,null,{"$error":"#DIV/0!"}]
[null,{"$f":"VLOOKUP(A189,Kode!A2:C21,3,FALSE)","v":{"$error":"#N/A"}},{"$f":"VLOOKUP(A189,Kode!A2:B21,2,FALSE)","v":{"$error":"#N/A"}},{"$f":"VLOOKUP(A189,Kode!A2:D21,4,FALSE)","v":{"$error":"#N/A"}},null,null,null,null,null,null,null,null,null,null,null,null,null,{"$f":"VLOOKUP(A189,Kode!A2:E21,5,FALSE)","v":{"$error":"#N/A"}},null,null,null,null,null,{"$error":"#DIV/0!"}]
[null,{"$f":"VLOOKUP(A190,Kode!A2:C21,3,FALSE)","v":{"$error":"#N/A"}},{"$f":"VLOOKUP(A190,Kode!A2:B21,2,FALSE)","v":{"$error":"#N/A"}},{"$f":"VLOOKUP(A190,Kode!A2:D21,4,FALSE)","v":{"$error":"#N/A"}},null,null,null,null,null,null,null,null,null,null,null,null,null,{"$f":"VLOOKUP(A190,Kode!A2:E21,5,FALSE)","v":{"$error":"#N/A"}},null,null,null,null,null,{"$error":"#DIV/0!"}]
[null,{"$f":"VLOOKUP(A191,Kode!A2:C21,3,FALSE)","v":{"$error":"#N/A"}},{"$f":"VLOOKUP(A191,Kode!A2:B21,2,FALSE)","v":{"$error":"#N/A"}},{"$f":"VLOOKUP(A191,Kode!A2:D21,4,FALSE)","v":{"$error":"#N/A"}},null,null,null,null,null,null,null,null,null,null,null,null,null,{"$f":"VLOOKUP(A191,Kode!A2:E21,5,FALSE)","v":{"$error":"#N/A"}},null,null,null,null,null,{"$error":"#DIV/0!"}]
[null,{"$f":"VLOOKUP(A192,Kode!A2:C21,3,FALSE)","v":{"$error":"#N/A"}},{"$f":"VLOOKUP(A192,Kode!A2:B21,2,FALSE)","v":{"$error":"#N/A"}},{"$f":"VLOOKUP(A192,Kode!A2:D21,4,FALSE)","v":{"$error":"#N/A"}},null,null,null,null,null,null,null,null,null,null,null,null,null,{"$f":"VLOOKUP(A192,Kode!A2:E21,5,FALSE)","v":{"$error":"#N/A"}},null,null,null,null,null,{"$error":"#DIV/0!"}]
[null,{"$f":"VLOOKUP(A193,Kode!A2:C21,3,FALSE)","v":{"$error":"#N/A"}},{"$f":"VLOOKUP(A193,Kode!A2:B21,2,FALSE)","v":{"$error":"#N/A"}},{"$f":"VLOOKUP(A193,Kode!A2:D21,4,FALSE)","v":{"$error":"#N/A"}},null,null,null,null,null,null,null,null,null,null,null,null,null,{"$f":"VLOOKUP(A193,Kode!A2:E21,5,FALSE)","v":{"$error":"#N/A"}},null,null,null,null,null,{"$error":"#DIV/0!"}]
[null,{"$f":"VLOOKUP(A194,Kode!A2:C21,3,FALSE)","v":{"$error":"#N/A"}},{"$f":"VLOOKUP(A194,Kode!A2:B21,2,FALSE)","v":{"$error":"#N/A"}},{"$f":"VLOOKUP(A194,Kode!A2:D21,4,FALSE)","v":{"$error":"#N/A"}},null,null,null,null,null,null,null,null,null,null,null,null,null,{"$f":"VLOOKUP(A194,Kode!A2:E21,5,FALSE)","v":{"$error":"#N/A"}},null,null,null,null,null,{"$error":"#DIV/0!"}]
[null,{"$f":"VLOOKUP(A195,Kode!A2:C21,3,FALSE)","v":{"$error":"#N/A"}},{"$f":"VLOOKUP(A195,Kode!A2:B21,2,FALSE)","v":{"$error":"#N/A"}},{"$f":"VLOOKUP(A195,Kode!A2:D21,4,FALSE)","v":{"$error":"#N/A"}},null,null,null,null,null,null,null,null,null,null,null,null,null,{"$f":"VLOOKUP(A195,Kode!A2:E21,5,FALSE)","v":{"$error":"#N/A"}},null,null,null,null,null,{"$f":"V195/T195*100","v":{"$error":"#DIV/0!"}}]
[null,{"$f":"VLOOKUP(A196,Kode!A2:C21,3,FALSE)","v":{"$error":"#N/A"}},{"$f":"VLOOKUP(A196,Kode!A2:B21,2,FALSE)","v":{"$error":"#N/A"}},{"$f":"VLOOKUP(A196,Kode!A2:D21,4,FALSE)","v":{"$error":"#N/A"}},null,null,null,null,null,null,null,null,null,null,null,null,null,{"$f":"VLOOKUP(A196,Kode!A2:E21,5,FALSE)","v":{"$error":"#N/A"}},null,null,null,null,null,{"$error":"#DIV/0!"}]
[null,{"$f":"VLOOKUP(A197,Kode!A2:C21,3,FALSE)","v":{"$error":"#N/A"}},{"$f":"VLOOKUP(A197,Kode!A2:B21,2,FALSE)","v":{"$error":"#N/A"}},{"$f":"VLOOKUP(A197,Kode!A2:D21,4,FALSE)","v":{"$error":"#N/A"}},null,null,null,null,null,null,null,null,null,null,null,null,null,{"$f":"VLOOKUP(A197,Kode!A2:E21,5,FALSE)","v":{"$error":"#N/A"}},null,null,null,null,null,{"$error":"#DIV/0!"}]
[null,{"$f":"VLOOKUP(A198,Kode!A2:C21,3,FALSE)","v":{"$error":"#N/A"}},{"$f":"VLOOKUP(A198,Kode!A2:B21,2,FALSE)","v":{"$error":"#N/A"}},{"$f":"VLOOKUP(A198,Kode!A2:D21,4,FALSE)","v":{"$error":"#N/A"}},null,null,null,null,null,null,null,null,null,null,null,null,null,{"$f":"VLOOKUP(A198,Kode!A2:E21,5,FALSE)","v":{"$error":"#N/A"}},null,null,null,null,null,{"$error":"#DIV/0!"}]
[null,{"$f":"VLOOKUP(A199,Kode!A2:C21,3,FALSE)","v":{"$error":"#N/A"}},{"$f":"VLOOKUP(A199,Kode!A2:B21,2,FALSE)","v":{"$error":"#N/A"}},{"$f":"VLOOKUP(A199,Kode!A2:D21,4,FALSE)","v":{"$error":"#N/A"}},null,null,null,null,null,null,null,null,null,null,null,null,null,{"$f":"VLOOKUP(A199,Kode!A2:E21,5,FALSE)","v":{"$error":"#N/A"}},null,null,null,null,null,{"$error":"#DIV/0!"}]
[null,{"$f":"VLOOKUP(A200,Kode!A2:C21,3,FALSE)","v":{"$error":"#N/A"}},{"$f":"VLOOKUP(A200,Kode!A2:B21,2,FALSE)","v":{"$error":"#N/A"}},{"$f":"VLOOKUP(A200,Kode!A2:D21,4,FALSE)","v":{"$error":"#N/A"}},null,null,null,null,null,null,null,null,null,null,null,null,null,{"$f":"VLOOKUP(A200,Kode!A2:E21,5,FALSE)","v":{"$error":"#N/A"}},null,null,null,null,null,{"$error":"#DIV/0!"}]
[null,{"$f":"VLOOKUP(A201,Kode!A2:C21,3,FALSE)","v":{"$error":"#N/A"}},{"$f":"VLOOKUP(A201,Kode!A2:B21,2,FALSE)","v":{"$error":"#N/A"}},{"$f":"VLOOKUP(A201,Kode!A2:D21,4,FALSE)","v":{"$error":"#N/A"}},null,null,null,null,null,null,null,null,null,null,null,null,null,{"$f":"VLOOKUP(A201,Kode!A2:E21,5,FALSE)","v":{"$error":"#N/A"}},null,null,null,null,null,{"$error":"#DIV/0!"}]
[null,{"$f":"VLOOKUP(A202,Kode!A2:C21,3,FALSE)","v":{"$error":"#N/A"}},{"$f":"VLOOKUP(A202,Kode!A2:B21,2,FALSE)","v":{"$error":"#N/A"}},{"$f":"VLOOKUP(A202,Kode!A2:D21,4,FALSE)","v":{"$error":"#N/A"}},null,null,null,null,null,null,null,null,null,null,null,null,null,{"$f":"VLOOKUP(A202,Kode!A2:E21,5,FALSE)","v":{"$error":"#N/A"}},null,null,null,null,null,{"$error":"#DIV/0!"}]
[null,{"$f":"VLOOKUP(A203,Kode!A2:C21,3,FALSE)","v":{"$error":"#N/A"}},{"$f":"VLOOKUP(A203,Kode!A2:B21,2,FALSE)","v":{"$error":"#N/A"}},{"$f":"VLOOKUP(A203,Kode!A2:D21,4,FALSE)","v":{"$error":"#N/A"}},null,null,null,null,null,null,null,null,null,null,null,null,null,{"$f":"VLOOKUP(A203,Kode!A2:E21,5,FALSE)","v":{"$error":"#N/A"}},null,null,null,null,null,{"$error":"#DIV/0!"}]
[null,{"$f":"VLOOKUP(A204,Kode!A2:C21,3,FALSE)","v":{"$error":"#N/A"}},{"$f":"VLOOKUP(A204,Kode!A2:B21,2,FALSE)","v":{"$error":"#N/A"}},{"$f":"VLOOKUP(A204,Kode!A2:D21,4,FALSE)","v":{"$error":"#N/A"}},null,null,null,null,null,null,null,null,null,null,null,null,null,{"$f":"VLOOKUP(A204,Kode!A2:E21,5,FALSE)","v":{"$error":"#N/A"}},null,null,null,null,null,{"$error":"#DIV/0!"}]
[null,{"$f":"VLOOKUP(A205,Kode!A2:C21,3,FALSE)","v":{"$error":"#N/A"}},{"$f":"VLOOKUP(A205,Kode!A2:B21,2,FALSE)","v":{"$error":"#N/A"}},{"$f":"VLOOKUP(A205,Kode!A2:D21,4,FALSE)","v":{"$error":"#N/A"}},null,null,null,null,null,null,null,null,null,null,null,null,null,{"$f":"VLOOKUP(A205,Kode!A2:E21,5,FALSE)","v":{"$error":"#N/A"}},null,null,null,null,null,{"$error":"#DIV/0!"}]

{"sheet":"Kode","index":1,"n_rows":434,"n_cols":11,"rows_kept":434,"cut":false,"hidden":true,"merged":[]}
["Naziv dajalca pomoči","Št. Priglasitve","MŠ dajalca pomoči","Naziv sheme pomoči/ime prejemnika individualne ad hoc pomoči","Pravna podlaga sheme pomoči","Šifra občine","Šifra instrumenta","Šifra namena","Opis ukrepa","Investicija","Člen uredbe"]
["JEKO, d. o. o.","K-M011-2482789-2015",5926823000,"Nadomestilo za zmanjšanje dohodka iz kmetijske dejavnosti zaradi prilagoditve ukrepom vodovarstvenega režima - de minimis","Uredba o načinu izplačevanja in merilih za izračun nadomestila za zmanjšanje dohodka iz kmetijske dejavnosti zaradi prilagoditve ukrepom vodovarstvenega režima",null,1,"5.0.04.1","a","da",14]
["JKP Brezovica d. o. o.","K-M011-2482789-2015",5945151000,"Nadomestilo za zmanjšanje dohodka iz kmetijske dejavnosti zaradi prilagoditve ukrepom vodovarstvenega režima - de minimis","Uredba o načinu izplačevanja in merilih za izračun nadomestila za zmanjšanje dohodka iz kmetijske dejavnosti zaradi prilagoditve ukrepom vodovarstvenega režima",null,5,"5.0.04.2","b","ne",15]
["JKP Žalec, d. o. o.","K-M011-2482789-2015",5068134000,"Nadomestilo za zmanjšanje dohodka iz kmetijske dejavnosti zaradi prilagoditve ukrepom vodovarstvenega režima - de minimis","Uredba o načinu izplačevanja in merilih za izračun nadomestila za zmanjšanje dohodka iz kmetijske dejavnosti zaradi prilagoditve ukrepom vodovarstvenega režima",null,10,"5.0.04.4","c",null,16]
["JP Komunala Črnomelj d. o. o.","K-M011-2482789-2015",5062403000,"Nadomestilo za zmanjšanje dohodka iz kmetijske dejavnosti zaradi prilagoditve ukrepom vodovarstvenega režima - de minimis","Uredba o načinu izplačevanja in merilih za izračun nadomestila za zmanjšanje dohodka iz kmetijske dejavnosti zaradi prilagoditve ukrepom vodovarstvenega režima",null,20,"5.0.04.5","d",null,17]
["JP KPV, d. o. o.","K-M011-2482789-2015",5015707000,"Nadomestilo za zmanjšanje dohodka iz kmetijske dejavnosti zaradi prilagoditve ukrepom vodovarstvenega režima - de minimis","Uredba o načinu izplačevanja in merilih za izračun nadomestila za zmanjšanje dohodka iz kmetijske dejavnosti zaradi prilagoditve ukrepom vodovarstvenega režima",null,25,"5.0.07.0","e",null,21]
["JP VOKA SNAGA d. o. o.","K-M011-2482789-2015",5046688000,"Nadomestilo za zmanjšanje dohodka iz kmetijske dejavnosti zaradi prilagoditve ukrepom vodovarstvenega režima - de minimis","Uredba o načinu izplačevanja in merilih za izračun nadomestila za zmanjšanje dohodka iz kmetijske dejavnosti zaradi prilagoditve ukrepom vodovarstvenega režima",null,28,"5.0.10.0","f",null,24]
["Komunala Kranj d. o. o.","K-M011-2482789-2015",5067731000,"Nadomestilo za zmanjšanje dohodka iz kmetijske dejavnosti zaradi prilagoditve ukrepom vodovarstvenega režima - de minimis","Uredba o načinu izplačevanja in merilih za izračun nadomestila za zmanjšanje dohodka iz kmetijske dejavnosti zaradi prilagoditve ukrepom vodovarstvenega režima",null,40,"5.0.11.2","g",null,28]
["Komunala Metlika d. o. o.","K-M011-2482789-2015",5157064000,"Nadomestilo za zmanjšanje dohodka iz kmetijske dejavnosti zaradi prilagoditve ukrepom vodovarstvenega režima - de minimis","Uredba o načinu izplačevanja in merilih za izračun nadomestila za zmanjšanje dohodka iz kmetijske dejavnosti zaradi prilagoditve ukrepom vodovarstvenega režima",null,43,"5.0.11.3","h",null,29]
["Komunala Ptuj d. d.","K-M011-2482789-2015",5321387000,"Nadomestilo za zmanjšanje dohodka iz kmetijske dejavnosti zaradi prilagoditve ukrepom vodovarstvenega režima - de minimis","Uredba o načinu izplačevanja in merilih za izračun nadomestila za zmanjšanje dohodka iz kmetijske dejavnosti zaradi prilagoditve ukrepom vodovarstvenega režima",null,48,"5.0.11.4",null,null,38]
["Komunala Radgona d. o. o.","K-M011-2482789-2015",2117975000,"Nadomestilo za zmanjšanje dohodka iz kmetijske dejavnosti zaradi prilagoditve ukrepom vodovarstvenega režima - de minimis","Uredba o načinu izplačevanja in merilih za izračun nadomestila za zmanjšanje dohodka iz kmetijske dejavnosti zaradi prilagoditve ukrepom vodovarstvenega režima",null,50,"5.0.11.5",null,null,43]
["Komunala Slovenj Gradec, d. o. o.","K-M011-2482789-2015",5072107000,"Nadomestilo za zmanjšanje dohodka iz kmetijske dejavnosti zaradi prilagoditve ukrepom vodovarstvenega režima - de minimis","Uredba o načinu izplačevanja in merilih za izračun nadomestila za zmanjšanje dohodka iz kmetijske dejavnosti zaradi prilagoditve ukrepom vodovarstvenega režima",null,70,"5.0.12.0"]
["Komunala Slovenska Bistrica d. o. o.","K-M011-2482789-2015",5073162000,"Nadomestilo za zmanjšanje dohodka iz kmetijske dejavnosti zaradi prilagoditve ukrepom vodovarstvenega režima - de minimis","Uredba o načinu izplačevanja in merilih za izračun nadomestila za zmanjšanje dohodka iz kmetijske dejavnosti zaradi prilagoditve ukrepom vodovarstvenega režima",null,75,"5.0.13.0"]
["Komunalno podjetje Logatec, d. o. o.","K-M011-2482789-2015",5827558000,"Nadomestilo za zmanjšanje dohodka iz kmetijske dejavnosti zaradi prilagoditve ukrepom vodovarstvenega režima - de minimis","Uredba o načinu izplačevanja in merilih za izračun nadomestila za zmanjšanje dohodka iz kmetijske dejavnosti zaradi prilagoditve ukrepom vodovarstvenega režima",null,null,"5.0.14.1"]
["Kraški vodovod Sežana d. o. o.","K-M011-2482789-2015",5072999000,"Nadomestilo za zmanjšanje dohodka iz kmetijske dejavnosti zaradi prilagoditve ukrepom vodovarstvenega režima - de minimis","Uredba o načinu izplačevanja in merilih za izračun nadomestila za zmanjšanje dohodka iz kmetijske dejavnosti zaradi prilagoditve ukrepom vodovarstvenega režima",null,null,"5.0.14.2"]
["KS Brezovica","K-M011-2482789-2015",5029970000,"Nadomestilo za zmanjšanje dohodka iz kmetijske dejavnosti zaradi prilagoditve ukrepom vodovarstvenega režima - de minimis","Uredba o načinu izplačevanja in merilih za izračun nadomestila za zmanjšanje dohodka iz kmetijske dejavnosti zaradi prilagoditve ukrepom vodovarstvenega režima",null,null,"5.0.14.3"]
["Mariborski vodovod d. d.","K-M011-2482789-2015",5067880000,"Nadomestilo za zmanjšanje dohodka iz kmetijske dejavnosti zaradi prilagoditve ukrepom vodovarstvenega režima - de minimis","Uredba o načinu izplačevanja in merilih za izračun nadomestila za zmanjšanje dohodka iz kmetijske dejavnosti zaradi prilagoditve ukrepom vodovarstvenega režima",null,null,"5.0.14.4"]
["Občina Hoče - Slivnica","K-M011-2482789-2015",1365568000,"Nadomestilo za zmanjšanje dohodka iz kmetijske dejavnosti zaradi prilagoditve ukrepom vodovarstvenega režima - de minimis","Uredba o načinu izplačevanja in merilih za izračun nadomestila za zmanjšanje dohodka iz kmetijske dejavnosti zaradi prilagoditve ukrepom vodovarstvenega režima",null,null,"5.0.15.0"]
["Občina Ig","K-M011-2482789-2015",5874769000,"Nadomestilo za zmanjšanje dohodka iz kmetijske dejavnosti zaradi prilagoditve ukrepom vodovarstvenega režima - de minimis","Uredba o načinu izplačevanja in merilih za izračun nadomestila za zmanjšanje dohodka iz kmetijske dejavnosti zaradi prilagoditve ukrepom vodovarstvenega režima",null,null,"5.1.01.0"]
["Rižanski vodovod Koper d. o. o. - s. r. l.","K-M011-2482789-2015",5067782000,"Nadomestilo za zmanjšanje dohodka iz kmetijske dejavnosti zaradi prilagoditve ukrepom vodovarstvenega režima - de minimis","Uredba o načinu izplačevanja in merilih za izračun nadomestila za zmanjšanje dohodka iz kmetijske dejavnosti zaradi prilagoditve ukrepom vodovarstvenega režima",null,null,"5.1.02.0"]
["Vodovod - kanalizacija, d. o. o.","K-M011-2482789-2015",5914540000,"Nadomestilo za zmanjšanje dohodka iz kmetijske dejavnosti zaradi prilagoditve ukrepom vodovarstvenega režima - de minimis","Uredba o načinu izplačevanja in merilih za izračun nadomestila za zmanjšanje dohodka iz kmetijske dejavnosti zaradi prilagoditve ukrepom vodovarstvenega režima",null,null,"5.1.03.0"]
[null,null,null,null,null,null,null,"5.1.04.0"]
[null,null,null,null,null,null,null,"5.1.05.0"]
[null,null,null,null,null,null,null,"5.1.06.0"]
[null,null,null,null,null,null,null,"5.2.01.0"]
[null,null,null,null,null,null,null,"5.2.02.0"]
[null,null,null,null,null,null,null,"5.7.00.0"]
[null,null,null,null,null,null,null,"5.8.01.0"]
[null,null,null,null,null,null,null,"5.8.02.0"]
[null,null,null,null,null,null,null,"5.8.03.0"]
[null,null,null,null,null,null,null,"5.8.04.0"]
[null,null,null,null,null,null,null,"5.8.05.0"]
[null,null,null,null,null,null,null,"5.8.06.0"]
[null,null,null,null,null,null,null,"5.8.07.1"]
[null,null,null,null,null,null,null,"5.8.07.2"]
[null,null,null,null,null,null,null,"5.8.08.0"]
[null,null,null,null,null,null,null,"5.8.09.0"]
[null,null,null,null,null,null,null,"5.8.10.0"]
[null,null,null,null,null,null,null,"5.8.11.0"]
[]
[]
[]
[]
[]
[]
[]
[]
[]
[]
[]
[]
[]
[]
[]
[]
[]
[]
[]
[]
[]
[]
[]
[]
[]
[]
[]
[]
[]
[]
[]
[]
[]
[]
[]
[]
[]
[]
[]
[]
[]
[]
[]
[]
[]
[]
[]
[]
[]
[]
[]
[]
[]
[]
[]
[]
[]
[]
[]
[]
[]
[]
[]
[]
[]
[]
[]
[]
[]
[]
[]
[]
[]
[]
[]
[]
[]
[]
[]
[]
[]
[]
[]
[]
[]
[]
[]
[]
[]
[]
[]
[]
[]
[]
[]
[]
[]
[]
[]
[]
[]
[]
[]
[]
[]
[]
[]
[]
[]
[]
[]
[]
[]
[]
[]
[]
[]
[]
[]
[]
[]
[]
[]
[]
[]
[]
[]
[]
[]
[]
[]
[]
[]
[]
[]
[]
[]
[]
[]
[]
[]
[]
[]
[]
[]
[]
[]
[]
[]
[]
[]
[]
[]
[]
[]
[]
[]
[]
[]
[]
[]
[]
[]
[]
[]
[]
[]
[]
[]
[]
[]
[]
[]
[]
[]
[]
[]
[]
[]
[]
[]
[]
[]
[null,null,null,null,null,"001"]
[null,null,null,null,null,"002"]
[null,null,null,null,null,"003"]
[null,null,null,null,null,"004"]
[null,null,null,null,null,"005"]
[null,null,null,null,null,"006"]
[null,null,null,null,null,"007"]
[null,null,null,null,null,"008"]
[null,null,null,null,null,"009"]
[null,null,null,null,null,"010"]
[null,null,null,null,null,"011"]
[null,null,null,null,null,"012"]
[null,null,null,null,null,"013"]
[null,null,null,null,null,"014"]
[null,null,null,null,null,"015"]
[null,null,null,null,null,"016"]
[null,null,null,null,null,"017"]
[null,null,null,null,null,"018"]
[null,null,null,null,null,"019"]
[null,null,null,null,null,"020"]
[null,null,null,null,null,"021"]
[null,null,null,null,null,"022"]
[null,null,null,null,null,"023"]
[null,null,null,null,null,"024"]
[null,null,null,null,null,"025"]
[null,null,null,null,null,"026"]
[null,null,null,null,null,"027"]
[null,null,null,null,null,"028"]
[null,null,null,null,null,"029"]
[null,null,null,null,null,"030"]
[null,null,null,null,null,"031"]
[null,null,null,null,null,"032"]
[null,null,null,null,null,"033"]
[null,null,null,null,null,"034"]
[null,null,null,null,null,"035"]
[null,null,null,null,null,"036"]
[null,null,null,null,null,"037"]
[null,null,null,null,null,"038"]
[null,null,null,null,null,"039"]
[null,null,null,null,null,"040"]
[null,null,null,null,null,"041"]
[null,null,null,null,null,"042"]
[null,null,null,null,null,"043"]
[null,null,null,null,null,"044"]
[null,null,null,null,null,"045"]
[null,null,null,null,null,"046"]
[null,null,null,null,null,"047"]
[null,null,null,null,null,"048"]
[null,null,null,null,null,"049"]
[null,null,null,null,null,"050"]
[null,null,null,null,null,"051"]
[null,null,null,null,null,"052"]
[null,null,null,null,null,"053"]
[null,null,null,null,null,"054"]
[null,null,null,null,null,"055"]
[null,null,null,null,null,"056"]
[null,null,null,null,null,"057"]
[null,null,null,null,null,"058"]
[null,null,null,null,null,"059"]
[null,null,null,null,null,"060"]
[null,null,null,null,null,"061"]
[null,null,null,null,null,"062"]
[null,null,null,null,null,"063"]
[null,null,null,null,null,"064"]
[null,null,null,null,null,"065"]
[null,null,null,null,null,"066"]
[null,null,null,null,null,"067"]
[null,null,null,null,null,"068"]
[null,null,null,null,null,"069"]
[null,null,null,null,null,"070"]
[null,null,null,null,null,"071"]
[null,null,null,null,null,"072"]
[null,null,null,null,null,"073"]
[null,null,null,null,null,"074"]
[null,null,null,null,null,"075"]
[null,null,null,null,null,"076"]
[null,null,null,null,null,"077"]
[null,null,null,null,null,"078"]
[null,null,null,null,null,"079"]
[null,null,null,null,null,"080"]
[null,null,null,null,null,"081"]
[null,null,null,null,null,"082"]
[null,null,null,null,null,"083"]
[null,null,null,null,null,"084"]
[null,null,null,null,null,"085"]
[null,null,null,null,null,"086"]
[null,null,null,null,null,"087"]
[null,null,null,null,null,"088"]
[null,null,null,null,null,"089"]
[null,null,null,null,null,"090"]
[null,null,null,null,null,"091"]
[null,null,null,null,null,"092"]
[null,null,null,null,null,"093"]
[null,null,null,null,null,"094"]
[null,null,null,null,null,"095"]
[null,null,null,null,null,"096"]
[null,null,null,null,null,"097"]
[null,null,null,null,null,"098"]
[null,null,null,null,null,"099"]
[null,null,null,null,null,"100"]
[null,null,null,null,null,"101"]
[null,null,null,null,null,"102"]
[null,null,null,null,null,"103"]
[null,null,null,null,null,"104"]
[null,null,null,null,null,"105"]
[null,null,null,null,null,"106"]
[null,null,null,null,null,"107"]
[null,null,null,null,null,"108"]
[null,null,null,null,null,"109"]
[null,null,null,null,null,"110"]
[null,null,null,null,null,"111"]
[null,null,null,null,null,"112"]
[null,null,null,null,null,"113"]
[null,null,null,null,null,"114"]
[null,null,null,null,null,"115"]
[null,null,null,null,null,"116"]
[null,null,null,null,null,"117"]
[null,null,null,null,null,"118"]
[null,null,null,null,null,"119"]
[null,null,null,null,null,"120"]
[null,null,null,null,null,"121"]
[null,null,null,null,null,"122"]
[null,null,null,null,null,"123"]
[null,null,null,null,null,"124"]
[null,null,null,null,null,"125"]
[null,null,null,null,null,"126"]
[null,null,null,null,null,"127"]
[null,null,null,null,null,"128"]
[null,null,null,null,null,"129"]
[null,null,null,null,null,"130"]
[null,null,null,null,null,"131"]
[null,null,null,null,null,"132"]
[null,null,null,null,null,"133"]
[null,null,null,null,null,"134"]
[null,null,null,null,null,"135"]
[null,null,null,null,null,"136"]
[null,null,null,null,null,"137"]
[null,null,null,null,null,"138"]
[null,null,null,null,null,"139"]
[null,null,null,null,null,"140"]
[null,null,null,null,null,"141"]
[null,null,null,null,null,"142"]
[null,null,null,null,null,"143"]
[null,null,null,null,null,"144"]
[null,null,null,null,null,"146"]
[null,null,null,null,null,"147"]
[null,null,null,null,null,"148"]
[null,null,null,null,null,"149"]
[null,null,null,null,null,"150"]
[null,null,null,null,null,"151"]
[null,null,null,null,null,"152"]
[null,null,null,null,null,"153"]
[null,null,null,null,null,"154"]
[null,null,null,null,null,"155"]
[null,null,null,null,null,"156"]
[null,null,null,null,null,"157"]
[null,null,null,null,null,"158"]
[null,null,null,null,null,"159"]
[null,null,null,null,null,"160"]
[null,null,null,null,null,"161"]
[null,null,null,null,null,"162"]
[null,null,null,null,null,"163"]
[null,null,null,null,null,"164"]
[null,null,null,null,null,"165"]
[null,null,null,null,null,"166"]
[null,null,null,null,null,"167"]
[null,null,null,null,null,"168"]
[null,null,null,null,null,"169"]
[null,null,null,null,null,"170"]
[null,null,null,null,null,"171"]
[null,null,null,null,null,"172"]
[null,null,null,null,null,"173"]
[null,null,null,null,null,"174"]
[null,null,null,null,null,"175"]
[null,null,null,null,null,"176"]
[null,null,null,null,null,"177"]
[null,null,null,null,null,"178"]
[null,null,null,null,null,"179"]
[null,null,null,null,null,"180"]
[null,null,null,null,null,"181"]
[null,null,null,null,null,"182"]
[null,null,null,null,null,"183"]
[null,null,null,null,null,"184"]
[null,null,null,null,null,"185"]
[null,null,null,null,null,"186"]
[null,null,null,null,null,"187"]
[null,null,null,null,null,"188"]
[null,null,null,null,null,"189"]
[null,null,null,null,null,"190"]
[null,null,null,null,null,"191"]
[null,null,null,null,null,"192"]
[null,null,null,null,null,"193"]
[null,null,null,null,null,"194"]
[null,null,null,null,null,"195"]
[null,null,null,null,null,"196"]
[null,null,null,null,null,"197"]
[null,null,null,null,null,"198"]
[null,null,null,null,null,"199"]
[null,null,null,null,null,"200"]
[null,null,null,null,null,"201"]
[null,null,null,null,null,"202"]
[null,null,null,null,null,"203"]
[null,null,null,null,null,"204"]
[null,null,null,null,null,"205"]
[null,null,null,null,null,"206"]
[null,null,null,null,null,"207"]
[null,null,null,null,null,"208"]
[null,null,null,null,null,"209"]
[null,null,null,null,null,"210"]
[null,null,null,null,null,"211"]
[null,null,null,null,null,"212"]
[null,null,null,null,null,"213"]